Workbook

Sheet AwardConfig
A1: ID[csknu] | B1: weightsCount[sn] | C1: library[csna] | D1: weightsMax[csna] | E1: weightsMin[csna] | F1: weights[sna] | G1: oddsCount[sn] | H1: reward[csna] | I1: oddsMax[csna] | J1: oddsMin[csna] | K1: odds[sna]
A2: 掉落库ID | B2: 权重随机次数 | C2: 必掉随机奖励 | D2: 权重掉落数量上限 | E2: 权重掉落数量下限 | F2: 掉落权重 | G2: 概率随机次数 | H2: 概率随机奖励 | I2: 随机掉落数量上限 | J2: 随机掉落数量下限 | K2: 掉落几率
A3: 10001 | B3: 0 | C3: 0 | D3: 0 | E3: 0 | F3: 0 | G3: 1 | H3: 100001^140003^140004 | I3: 100^10^10 | J3: 100^10^10 | K3: 10000^10000^10000 | L3: 概率测试掉落
A4: 10002 | B4: 6 | C4: 140007^140008^140009^140010^140011^140012 | D4: 1^1^1^1^1^1 | E4: 1^1^1^1^1^1 | F4: 1666^1666^1667^1667^1667^1667 | G4: 0 | H4: 0 | I4: 0 | J4: 0 | K4: 0 | L4: 权重测试掉落
A5: 10003 | B5: 0 | C5: 0 | D5: 0 | E5: 0 | F5: 0 | G5: 1 | H5: 100001^140003^140004^140007^140008^140009^140010^140011^140012 | I5: 100^10^10^1^1^1^1^1^1 | J5: 100^10^10^0^0^0^0^0^0 | K5: 7500^5000^10000^10000^10000^10000^10000^10000^10000 | L5: 测试掉落
A6: 10004 | B6: 0 | C6: 0 | D6: 0 | E6: 0 | F6: 0 | G6: 1 | H6: 150000^10101^100001^140002 | I6: 60^1^5000^100 | J6: 60^1^5000^100 | K6: 10000^10000^10000^10000 | L6: 账号初始资源
A7: 10010 | B7: 1 | C7: 10104^10304^10504^12504^10804^10904^11004^11104^12004^11204^11504^11604^10604^12104^11304^10404^11704^11904^10704 | D7: 1^1^1^1^1^1^1^1^1^1^1^1^1^1^1^1^1^1^1 | E7: 1^1^1^1^1^1^1^1^1^1^1^1^1^1^1^1^1^1^1 | F7: 789^529^529^789^789^789^263^789^789^526^526^526^526^526^263^263^263^263^263 | G7: 0 | H7: 0 | I7: 0 | J7: 0 | K7: 0 | L7: 4阶紫色英雄置换结果库
A8: 10011 | B8: 1 | C8: 10107^10307^10507^12507^10807^10907^11007^11107^12007^11207^11507^11607^10607^12107^11307^10407^11707^11907^10707 | D8: 1^1^1^1^1^1^1^1^1^1^1^1^1^1^1^1^1^1^1 | E8: 1^1^1^1^1^1^1^1^1^1^1^1^1^1^1^1^1^1^1 | F8: 789^529^529^789^789^789^263^789^789^526^526^526^526^526^263^263^263^263^263 | G8: 0 | H8: 0 | I8: 0 | J8: 0 | K8: 0 | L8: 7阶橙色英雄置换结果库
A9: 10012 | B9: 1 | C9: 210104^210204^210304^210404^210504^210604^210704^210804^210904^211004 | D9: 1^1^1^1^1^1^1^1^1^1 | E9: 1^1^1^1^1^1^1^1^1^1 | F9: 1000^1000^1000^1000^1000^1000^1000^1000^1000^1000 | G9: 0 | H9: 0 | I9: 0 | J9: 0 | K9: 0 | L9: 紫色武器置换库
A10: 10013 | B10: 1 | C10: 210107^210207^210307^210407^210507^210607^210707^210807^210907^211007 | D10: 1^1^1^1^1^1^1^1^1^1 | E10: 1^1^1^1^1^1^1^1^1^1 | F10: 1000^1000^1000^1000^1000^1000^1000^1000^1000^1000 | G10: 0 | H10: 0 | I10: 0 | J10: 0 | K10: 0 | L10: 橙色武器置换库
A11: 10014 | B11: 1 | C11: 220104^220204^220304^220404^220504^220604 | D11: 1^1^1^1^1^1 | E11: 1^1^1^1^1^1 | F11: 1666^1666^1667^1667^1667^1667 | G11: 0 | H11: 0 | I11: 0 | J11: 0 | K11: 0 | L11: 紫色首饰置换库
A12: 10015 | B12: 1 | C12: 220107^220207^220307^220407^220507^220607 | D12: 1^1^1^1^1^1 | E12: 1^1^1^1^1^1 | F12: 1666^1666^1667^1667^1667^1667 | G12: 0 | H12: 0 | I12: 0 | J12: 0 | K12: 0 | L12: 橙色首饰置换库
A13: 10016 | B13: 1 | C13: 230104^230204^230304^230404^230504^230604 | D13: 1^1^1^1^1^1 | E13: 1^1^1^1^1^1 | F13: 1666^1666^1667^1667^1667^1667 | G13: 0 | H13: 0 | I13: 0 | J13: 0 | K13: 0 | L13: 紫色护腕置换库
A14: 10017 | B14: 1 | C14: 230107^230207^230307^230407^230507^230607 | D14: 1^1^1^1^1^1 | E14: 1^1^1^1^1^1 | F14: 1666^1666^1667^1667^1667^1667 | G14: 0 | H14: 0 | I14: 0 | J14: 0 | K14: 0 | L14: 橙色护腕置换库
A15: 10018 | B15: 1 | C15: 240104^240204^240304^240404^240504^240604 | D15: 1^1^1^1^1^1 | E15: 1^1^1^1^1^1 | F15: 1666^1666^1667^1667^1667^1667 | G15: 0 | H15: 0 | I15: 0 | J15: 0 | K15: 0 | L15: 紫色护甲置换库
A16: 10019 | B16: 1 | C16: 240107^240207^240307^240407^240507^240607 | D16: 1^1^1^1^1^1 | E16: 1^1^1^1^1^1 | F16: 1666^1666^1667^1667^1667^1667 | G16: 0 | H16: 0 | I16: 0 | J16: 0 | K16: 0 | L16: 橙色护甲置换库
A17: 10020 | B17: 1 | C17: 250104^250204^250304^250404^250504^250604 | D17: 1^1^1^1^1^1 | E17: 1^1^1^1^1^1 | F17: 1666^1666^1667^1667^1667^1667 | G17: 0 | H17: 0 | I17: 0 | J17: 0 | K17: 0 | L17: 紫色腰带置换库
A18: 10021 | B18: 1 | C18: 250107^250207^250307^250407^250507^250607 | D18: 1^1^1^1^1^1 | E18: 1^1^1^1^1^1 | F18: 1666^1666^1667^1667^1667^1667 | G18: 0 | H18: 0 | I18: 0 | J18: 0 | K18: 0 | L18: 橙色腰带置换库
A19: 10022 | B19: 1 | C19: 260104^260204^260304^260404^260504^260604 | D19: 1^1^1^1^1^1 | E19: 1^1^1^1^1^1 | F19: 1666^1666^1667^1667^1667^1667 | G19: 0 | H19: 0 | I19: 0 | J19: 0 | K19: 0 | L19: 紫色鞋子置换库
A20: 10023 | B20: 1 | C20: 260107^260207^260307^260407^260507^260607 | D20: 1^1^1^1^1^1 | E20: 1^1^1^1^1^1 | F20: 1666^1666^1667^1667^1667^1667 | G20: 0 | H20: 0 | I20: 0 | J20: 0 | K20: 0 | L20: 橙色鞋子置换库
A21: 10050 | B21: 0 | C21: 0 | D21: 0 | E21: 0 | F21: 0 | G21: 1 | H21: 110002 | I21: 1 | J21: 2 | K21: 10000 | L21: 战斗掉落能力罐1
A22: 10051 | B22: 0 | C22: 0 | D22: 0 | E22: 0 | F22: 0 | G22: 1 | H22: 110002 | I22: 1 | J22: 5 | K22: 10000 | L22: 战斗掉落能力罐2
A23: 10052 | B23: 0 | C23: 0 | D23: 0 | E23: 0 | F23: 0 | G23: 1 | H23: 110002 | I23: 1 | J23: 8 | K23: 10000 | L23: 战斗掉落能力罐3
A24: 11100 | B24: 0 | C24: 0 | D24: 0 | E24: 0 | F24: 0 | G24: 1 | H24: 100001^130002 | I24: 1800^3 | J24: 2700^6 | K24: 10000^5000 | L24: 1级金矿探索
A25: 11101 | B25: 0 | C25: 0 | D25: 0 | E25: 0 | F25: 0 | G25: 1 | H25: 100001^130002 | I25: 2700^5 | J25: 4050^9 | K25: 10000^5000 | L25: 2级金矿探索
A26: 11102 | B26: 0 | C26: 0 | D26: 0 | E26: 0 | F26: 0 | G26: 1 | H26: 100001^130002 | I26: 3960^7 | J26: 5940^10 | K26: 10000^5000 | L26: 3级金矿探索
A27: 11103 | B27: 0 | C27: 0 | D27: 0 | E27: 0 | F27: 0 | G27: 1 | H27: 100001^130002 | I27: 5940^10 | J27: 8910^14 | K27: 10000^5000 | L27: 4级金矿探索
A28: 11104 | B28: 0 | C28: 0 | D28: 0 | E28: 0 | F28: 0 | G28: 1 | H28: 100001^130002 | I28: 8820^14 | J28: 13230^17 | K28: 10000^5000 | L28: 5级金矿探索
A29: 11105 | B29: 0 | C29: 0 | D29: 0 | E29: 0 | F29: 0 | G29: 1 | H29: 100001^130002 | I29: 13140^18 | J29: 19710^21 | K29: 10000^5000 | L29: 6级金矿探索
A30: 11106 | B30: 0 | C30: 0 | D30: 0 | E30: 0 | F30: 0 | G30: 1 | H30: 100001^130002 | I30: 19620^23 | J30: 29430^26 | K30: 10000^5000 | L30: 7级金矿探索
A31: 11107 | B31: 0 | C31: 0 | D31: 0 | E31: 0 | F31: 0 | G31: 1 | H31: 100001^130002 | I31: 25380^28 | J31: 38070^31 | K31: 10000^5000 | L31: 8级金矿探索
A32: 11108 | B32: 0 | C32: 0 | D32: 0 | E32: 0 | F32: 0 | G32: 1 | H32: 100001^130002 | I32: 32940^34 | J32: 49410^37 | K32: 10000^5000 | L32: 9级金矿探索
A33: 11109 | B33: 0 | C33: 0 | D33: 0 | E33: 0 | F33: 0 | G33: 1 | H33: 100001^130002 | I33: 42660^44 | J33: 63990^47 | K33: 10000^5000 | L33: 10级金矿探索
A34: 11200 | B34: 0 | C34: 0 | D34: 0 | E34: 0 | F34: 0 | G34: 1 | H34: 110001^130002 | I34: 8^3 | J34: 15^6 | K34: 10000^5000 | L34: 1级农场探索
A35: 11201 | B35: 0 | C35: 0 | D35: 0 | E35: 0 | F35: 0 | G35: 1 | H35: 110001^130002 | I35: 12^5 | J35: 25^9 | K35: 10000^5000 | L35: 2级农场探索
A36: 11202 | B36: 0 | C36: 0 | D36: 0 | E36: 0 | F36: 0 | G36: 1 | H36: 110001^130002 | I36: 20^7 | J36: 30^10 | K36: 10000^5000 | L36: 3级农场探索
A37: 11203 | B37: 0 | C37: 0 | D37: 0 | E37: 0 | F37: 0 | G37: 1 | H37: 110001^130002 | I37: 27^10 | J37: 37^14 | K37: 10000^5000 | L37: 4级农场探索
A38: 11204 | B38: 0 | C38: 0 | D38: 0 | E38: 0 | F38: 0 | G38: 1 | H38: 110001^130002 | I38: 36^14 | J38: 54^17 | K38: 10000^5000 | L38: 5级农场探索
A39: 11205 | B39: 0 | C39: 0 | D39: 0 | E39: 0 | F39: 0 | G39: 1 | H39: 110001^130002 | I39: 40^18 | J39: 60^21 | K39: 10000^5000 | L39: 6级农场探索
A40: 11206 | B40: 0 | C40: 0 | D40: 0 | E40: 0 | F40: 0 | G40: 1 | H40: 110001^130002 | I40: 45^23 | J40: 67^26 | K40: 10000^5000 | L40: 7级农场探索
A41: 11207 | B41: 0 | C41: 0 | D41: 0 | E41: 0 | F41: 0 | G41: 1 | H41: 110001^130002 | I41: 52^28 | J41: 78^31 | K41: 10000^5000 | L41: 8级农场探索
A42: 11208 | B42: 0 | C42: 0 | D42: 0 | E42: 0 | F42: 0 | G42: 1 | H42: 110001^130002 | I42: 54^34 | J42: 81^37 | K42: 10000^5000 | L42: 9级农场探索
A43: 11209 | B43: 0 | C43: 0 | D43: 0 | E43: 0 | F43: 0 | G43: 1 | H43: 110001^130002 | I43: 60^44 | J43: 90^47 | K43: 10000^5000 | L43: 10级农场探索
A44: 11300 | B44: 0 | C44: 0 | D44: 0 | E44: 0 | F44: 0 | G44: 1 | H44: 140001^130002 | I44: 180^3 | J44: 216^6 | K44: 10000^5000 | L44: 1级铁矿探索
A45: 11301 | B45: 0 | C45: 0 | D45: 0 | E45: 0 | F45: 0 | G45: 1 | H45: 140001^130002 | I45: 360^5 | J45: 432^9 | K45: 10000^5000 | L45: 2级铁矿探索
A46: 11302 | B46: 0 | C46: 0 | D46: 0 | E46: 0 | F46: 0 | G46: 1 | H46: 140001^130002 | I46: 720^7 | J46: 864^10 | K46: 10000^5000 | L46: 3级铁矿探索
A47: 11303 | B47: 0 | C47: 0 | D47: 0 | E47: 0 | F47: 0 | G47: 1 | H47: 140001^130002 | I47: 1080^10 | J47: 1296^14 | K47: 10000^5000 | L47: 4级铁矿探索
A48: 11304 | B48: 0 | C48: 0 | D48: 0 | E48: 0 | F48: 0 | G48: 1 | H48: 140001^130002 | I48: 1440^14 | J48: 1728^17 | K48: 10000^5000 | L48: 5级铁矿探索
A49: 11305 | B49: 0 | C49: 0 | D49: 0 | E49: 0 | F49: 0 | G49: 1 | H49: 140001^130002 | I49: 1800^18 | J49: 2160^21 | K49: 10000^5000 | L49: 6级铁矿探索
A50: 11306 | B50: 0 | C50: 0 | D50: 0 | E50: 0 | F50: 0 | G50: 1 | H50: 140001^130002 | I50: 2160^23 | J50: 2592^26 | K50: 10000^5000 | L50: 7级铁矿探索
A51: 11307 | B51: 0 | C51: 0 | D51: 0 | E51: 0 | F51: 0 | G51: 1 | H51: 140001^130002 | I51: 2520^28 | J51: 3024^31 | K51: 10000^5000 | L51: 8级铁矿探索
A52: 11308 | B52: 0 | C52: 0 | D52: 0 | E52: 0 | F52: 0 | G52: 1 | H52: 140001^130002 | I52: 2880^34 | J52: 3456^37 | K52: 10000^5000 | L52: 9级铁矿探索
A53: 11309 | B53: 0 | C53: 0 | D53: 0 | E53: 0 | F53: 0 | G53: 1 | H53: 140001^130002 | I53: 3240^44 | J53: 3888^47 | K53: 10000^5000 | L53: 10级铁矿探索
A54: 11400 | B54: 0 | C54: 0 | D54: 0 | E54: 0 | F54: 0 | G54: 1 | H54: 140002^130002 | I54: 180^3 | J54: 216^6 | K54: 10000^5000 | L54: 1级木场探索
A55: 11401 | B55: 0 | C55: 0 | D55: 0 | E55: 0 | F55: 0 | G55: 1 | H55: 140002^130002 | I55: 360^5 | J55: 432^9 | K55: 10000^5000 | L55: 2级木场探索
A56: 11402 | B56: 0 | C56: 0 | D56: 0 | E56: 0 | F56: 0 | G56: 1 | H56: 140002^130002 | I56: 720^7 | J56: 864^10 | K56: 10000^5000 | L56: 3级木场探索
A57: 11403 | B57: 0 | C57: 0 | D57: 0 | E57: 0 | F57: 0 | G57: 1 | H57: 140002^130002 | I57: 1080^10 | J57: 1296^14 | K57: 10000^5000 | L57: 4级木场探索
A58: 11404 | B58: 0 | C58: 0 | D58: 0 | E58: 0 | F58: 0 | G58: 1 | H58: 140002^130002 | I58: 1440^14 | J58: 1728^17 | K58: 10000^5000 | L58: 5级木场探索
A59: 11405 | B59: 0 | C59: 0 | D59: 0 | E59: 0 | F59: 0 | G59: 1 | H59: 140002^130002 | I59: 1800^18 | J59: 2160^21 | K59: 10000^5000 | L59: 6级木场探索
A60: 11406 | B60: 0 | C60: 0 | D60: 0 | E60: 0 | F60: 0 | G60: 1 | H60: 140002^130002 | I60: 2160^23 | J60: 2592^26 | K60: 10000^5000 | L60: 7级木场探索
A61: 11407 | B61: 0 | C61: 0 | D61: 0 | E61: 0 | F61: 0 | G61: 1 | H61: 140002^130002 | I61: 2520^28 | J61: 3024^31 | K61: 10000^5000 | L61: 8级木场探索
A62: 11408 | B62: 0 | C62: 0 | D62: 0 | E62: 0 | F62: 0 | G62: 1 | H62: 140002^130002 | I62: 2880^34 | J62: 3456^37 | K62: 10000^5000 | L62: 9级木场探索
A63: 11409 | B63: 0 | C63: 0 | D63: 0 | E63: 0 | F63: 0 | G63: 1 | H63: 140002^130002 | I63: 3240^44 | J63: 3888^47 | K63: 10000^5000 | L63: 10级木场探索
A64: 20000 | B64: 1 | C64: 140007^140008^140009^140010^140011^140012 | D64: 1^1^1^1^1^1 | E64: 1^1^1^1^1^1 | F64: 1666^1666^1667^1667^1667^1667 | G64: 0 | H64: 0 | I64: 0 | J64: 0 | K64: 0 | L64: 关卡波次随机卷轴*1
A65: 20001 | B65: 2 | C65: 140007^140008^140009^140010^140011^140012 | D65: 1^1^1^1^1^1 | E65: 1^1^1^1^1^1 | F65: 1666^1666^1667^1667^1667^1667 | G65: 0 | H65: 0 | I65: 0 | J65: 0 | K65: 0 | L65: 关卡波次随机卷轴*2
A66: 20002 | B66: 3 | C66: 140007^140008^140009^140010^140011^140012 | D66: 1^1^1^1^1^1 | E66: 1^1^1^1^1^1 | F66: 1666^1666^1667^1667^1667^1667 | G66: 0 | H66: 0 | I66: 0 | J66: 0 | K66: 0 | L66: 关卡波次随机卷轴*3
A67: 20003 | B67: 4 | C67: 140007^140008^140009^140010^140011^140012 | D67: 1^1^1^1^1^1 | E67: 1^1^1^1^1^1 | F67: 1666^1666^1667^1667^1667^1667 | G67: 0 | H67: 0 | I67: 0 | J67: 0 | K67: 0 | L67: 关卡波次随机卷轴*4
A68: 20004 | B68: 5 | C68: 140007^140008^140009^140010^140011^140012 | D68: 1^1^1^1^1^1 | E68: 1^1^1^1^1^1 | F68: 1666^1666^1667^1667^1667^1667 | G68: 0 | H68: 0 | I68: 0 | J68: 0 | K68: 0 | L68: 关卡波次随机卷轴*5
A69: 20005 | B69: 6 | C69: 140007^140008^140009^140010^140011^140012 | D69: 1^1^1^1^1^1 | E69: 1^1^1^1^1^1 | F69: 1666^1666^1667^1667^1667^1667 | G69: 0 | H69: 0 | I69: 0 | J69: 0 | K69: 0 | L69: 关卡波次随机卷轴*6
A70: 20006 | B70: 7 | C70: 140007^140008^140009^140010^140011^140012 | D70: 1^1^1^1^1^1 | E70: 1^1^1^1^1^1 | F70: 1666^1666^1667^1667^1667^1667 | G70: 0 | H70: 0 | I70: 0 | J70: 0 | K70: 0 | L70: 关卡波次随机卷轴*7
A71: 20007 | B71: 8 | C71: 140007^140008^140009^140010^140011^140012 | D71: 1^1^1^1^1^1 | E71: 1^1^1^1^1^1 | F71: 1666^1666^1667^1667^1667^1667 | G71: 0 | H71: 0 | I71: 0 | J71: 0 | K71: 0 | L71: 关卡波次随机卷轴*8
A72: 20008 | B72: 9 | C72: 140007^140008^140009^140010^140011^140012 | D72: 1^1^1^1^1^1 | E72: 1^1^1^1^1^1 | F72: 1666^1666^1667^1667^1667^1667 | G72: 0 | H72: 0 | I72: 0 | J72: 0 | K72: 0 | L72: 关卡波次随机卷轴*9
A73: 20009 | B73: 10 | C73: 140007^140008^140009^140010^140011^140012 | D73: 1^1^1^1^1^1 | E73: 1^1^1^1^1^1 | F73: 1666^1666^1667^1667^1667^1667 | G73: 0 | H73: 0 | I73: 0 | J73: 0 | K73: 0 | L73: 关卡波次随机卷轴*10
A74: 21001 | B74: 0 | C74: 0 | D74: 0 | E74: 0 | F74: 0 | G74: 1 | H74: 140004^100001^140003 | I74: 15^1000^1100 | J74: 10^500^1100 | K74: 10000^10000^10000 | L74: 主线关卡波次奖励-1
A75: 21002 | B75: 0 | C75: 0 | D75: 0 | E75: 0 | F75: 0 | G75: 1 | H75: 140004^100001^140003 | I75: 16^1040^1200 | J75: 11^520^1200 | K75: 10000^10000^10000 | L75: 主线关卡波次奖励-2
A76: 21003 | B76: 0 | C76: 0 | D76: 0 | E76: 0 | F76: 0 | G76: 1 | H76: 140004^100001^140003 | I76: 18^1080^1300 | J76: 12^540^1300 | K76: 10000^10000^10000 | L76: 主线关卡波次奖励-3
A77: 21004 | B77: 0 | C77: 0 | D77: 0 | E77: 0 | F77: 0 | G77: 1 | H77: 140004^100001^140003 | I77: 19^1120^1600 | J77: 13^560^1600 | K77: 10000^10000^10000 | L77: 主线关卡波次奖励-4
A78: 21005 | B78: 0 | C78: 0 | D78: 0 | E78: 0 | F78: 0 | G78: 1 | H78: 140004^100001^140003 | I78: 21^1160^1800 | J78: 14^580^1600 | K78: 10000^10000^10000 | L78: 主线关卡波次奖励-5
A79: 21006 | B79: 0 | C79: 0 | D79: 0 | E79: 0 | F79: 0 | G79: 1 | H79: 140004^100001^140003 | I79: 22^1200^1920 | J79: 15^600^1600 | K79: 10000^10000^10000 | L79: 主线关卡波次奖励-6
A80: 21007 | B80: 0 | C80: 0 | D80: 0 | E80: 0 | F80: 0 | G80: 1 | H80: 140004^100001^140003 | I80: 24^1240^2040 | J80: 16^620^1700 | K80: 10000^10000^10000 | L80: 主线关卡波次奖励-7
A81: 21008 | B81: 0 | C81: 0 | D81: 0 | E81: 0 | F81: 0 | G81: 1 | H81: 140004^100001^140003 | I81: 25^1280^2160 | J81: 17^640^1800 | K81: 10000^10000^10000 | L81: 主线关卡波次奖励-8
A82: 21009 | B82: 0 | C82: 0 | D82: 0 | E82: 0 | F82: 0 | G82: 1 | H82: 140004^100001^140003 | I82: 27^1320^2280 | J82: 18^660^1900 | K82: 10000^10000^10000 | L82: 主线关卡波次奖励-9
A83: 21010 | B83: 0 | C83: 0 | D83: 0 | E83: 0 | F83: 0 | G83: 1 | H83: 140004^100001^140003 | I83: 28^1360^2400 | J83: 19^680^2000 | K83: 10000^10000^10000 | L83: 主线关卡波次奖励-10
A84: 21011 | B84: 0 | C84: 0 | D84: 0 | E84: 0 | F84: 0 | G84: 1 | H84: 140004^100001^140003 | I84: 30^1400^2640 | J84: 20^700^2200 | K84: 10000^10000^10000 | L84: 主线关卡波次奖励-11
A85: 21012 | B85: 0 | C85: 0 | D85: 0 | E85: 0 | F85: 0 | G85: 1 | H85: 140004^100001^140003 | I85: 31^1440^2880 | J85: 21^720^2400 | K85: 10000^10000^10000 | L85: 主线关卡波次奖励-12
A86: 21013 | B86: 0 | C86: 0 | D86: 0 | E86: 0 | F86: 0 | G86: 1 | H86: 140004^100001^140003 | I86: 33^1480^3120 | J86: 22^740^2600 | K86: 10000^10000^10000 | L86: 主线关卡波次奖励-13
A87: 21014 | B87: 0 | C87: 0 | D87: 0 | E87: 0 | F87: 0 | G87: 1 | H87: 140004^100001^140003 | I87: 34^1520^3360 | J87: 23^760^2800 | K87: 10000^10000^10000 | L87: 主线关卡波次奖励-14
A88: 21015 | B88: 0 | C88: 0 | D88: 0 | E88: 0 | F88: 0 | G88: 1 | H88: 140004^100001^140003 | I88: 36^1560^3600 | J88: 24^780^3000 | K88: 10000^10000^10000 | L88: 主线关卡波次奖励-15
A89: 21016 | B89: 0 | C89: 0 | D89: 0 | E89: 0 | F89: 0 | G89: 1 | H89: 140004^100001^140003 | I89: 37^1600^3840 | J89: 25^800^3200 | K89: 10000^10000^10000 | L89: 主线关卡波次奖励-16
A90: 21017 | B90: 0 | C90: 0 | D90: 0 | E90: 0 | F90: 0 | G90: 1 | H90: 140004^100001^140003 | I90: 39^1640^4080 | J90: 26^820^3400 | K90: 10000^10000^10000 | L90: 主线关卡波次奖励-17
A91: 21018 | B91: 0 | C91: 0 | D91: 0 | E91: 0 | F91: 0 | G91: 1 | H91: 140004^100001^140003 | I91: 40^1680^4320 | J91: 27^840^3600 | K91: 10000^10000^10000 | L91: 主线关卡波次奖励-18
A92: 21019 | B92: 0 | C92: 0 | D92: 0 | E92: 0 | F92: 0 | G92: 1 | H92: 140004^100001^140003 | I92: 42^1720^4560 | J92: 28^860^3800 | K92: 10000^10000^10000 | L92: 主线关卡波次奖励-19
A93: 21020 | B93: 0 | C93: 0 | D93: 0 | E93: 0 | F93: 0 | G93: 1 | H93: 140004^100001^140003 | I93: 43^1760^4800 | J93: 29^880^4000 | K93: 10000^10000^10000 | L93: 主线关卡波次奖励-20
A94: 21021 | B94: 0 | C94: 0 | D94: 0 | E94: 0 | F94: 0 | G94: 1 | H94: 140004^100001^140003 | I94: 45^1800^5040 | J94: 30^900^4200 | K94: 10000^10000^10000 | L94: 主线关卡波次奖励-21
A95: 21022 | B95: 0 | C95: 0 | D95: 0 | E95: 0 | F95: 0 | G95: 1 | H95: 140004^100001^140003 | I95: 46^1840^5280 | J95: 31^920^4400 | K95: 10000^10000^10000 | L95: 主线关卡波次奖励-22
A96: 21023 | B96: 0 | C96: 0 | D96: 0 | E96: 0 | F96: 0 | G96: 1 | H96: 140004^100001^140003 | I96: 48^1880^5520 | J96: 32^940^4600 | K96: 10000^10000^10000 | L96: 主线关卡波次奖励-23
A97: 21024 | B97: 0 | C97: 0 | D97: 0 | E97: 0 | F97: 0 | G97: 1 | H97: 140004^100001^140003 | I97: 49^1920^5760 | J97: 33^960^4800 | K97: 10000^10000^10000 | L97: 主线关卡波次奖励-24
A98: 21025 | B98: 0 | C98: 0 | D98: 0 | E98: 0 | F98: 0 | G98: 1 | H98: 140004^100001^140003 | I98: 51^1960^6000 | J98: 34^980^5000 | K98: 10000^10000^10000 | L98: 主线关卡波次奖励-25
A99: 21026 | B99: 0 | C99: 0 | D99: 0 | E99: 0 | F99: 0 | G99: 1 | H99: 140004^100001^140003 | I99: 52^2000^6240 | J99: 35^1000^5200 | K99: 10000^10000^10000 | L99: 主线关卡波次奖励-26
A100: 21027 | B100: 0 | C100: 0 | D100: 0 | E100: 0 | F100: 0 | G100: 1 | H100: 140004^100001^140003 | I100: 54^2040^6480 | J100: 36^1020^5400 | K100: 10000^10000^10000 | L100: 主线关卡波次奖励-27
A101: 21028 | B101: 0 | C101: 0 | D101: 0 | E101: 0 | F101: 0 | G101: 1 | H101: 140004^100001^140003 | I101: 55^2080^6720 | J101: 37^1040^5600 | K101: 10000^10000^10000 | L101: 主线关卡波次奖励-28
A102: 21029 | B102: 0 | C102: 0 | D102: 0 | E102: 0 | F102: 0 | G102: 1 | H102: 140004^100001^140003 | I102: 57^2120^6960 | J102: 38^1060^5800 | K102: 10000^10000^10000 | L102: 主线关卡波次奖励-29
A103: 21030 | B103: 0 | C103: 0 | D103: 0 | E103: 0 | F103: 0 | G103: 1 | H103: 140004^100001^140003 | I103: 58^2160^7200 | J103: 39^1080^6000 | K103: 10000^10000^10000 | L103: 主线关卡波次奖励-30
A104: 21031 | B104: 0 | C104: 0 | D104: 0 | E104: 0 | F104: 0 | G104: 1 | H104: 140004^100001^140003 | I104: 60^2200^7800 | J104: 40^1100^6500 | K104: 10000^10000^10000 | L104: 主线关卡波次奖励-31
A105: 21032 | B105: 0 | C105: 0 | D105: 0 | E105: 0 | F105: 0 | G105: 1 | H105: 140004^100001^140003 | I105: 61^2240^8400 | J105: 41^1120^7000 | K105: 10000^10000^10000 | L105: 主线关卡波次奖励-32
A106: 21033 | B106: 0 | C106: 0 | D106: 0 | E106: 0 | F106: 0 | G106: 1 | H106: 140004^100001^140003 | I106: 63^2280^9000 | J106: 42^1140^7500 | K106: 10000^10000^10000 | L106: 主线关卡波次奖励-33
A107: 21034 | B107: 0 | C107: 0 | D107: 0 | E107: 0 | F107: 0 | G107: 1 | H107: 140004^100001^140003 | I107: 64^2320^9600 | J107: 43^1160^8000 | K107: 10000^10000^10000 | L107: 主线关卡波次奖励-34
A108: 21035 | B108: 0 | C108: 0 | D108: 0 | E108: 0 | F108: 0 | G108: 1 | H108: 140004^100001^140003 | I108: 66^2360^10200 | J108: 44^1180^8500 | K108: 10000^10000^10000 | L108: 主线关卡波次奖励-35
A109: 21036 | B109: 0 | C109: 0 | D109: 0 | E109: 0 | F109: 0 | G109: 1 | H109: 140004^100001^140003 | I109: 67^2400^10800 | J109: 45^1200^9000 | K109: 10000^10000^10000 | L109: 主线关卡波次奖励-36
A110: 21037 | B110: 0 | C110: 0 | D110: 0 | E110: 0 | F110: 0 | G110: 1 | H110: 140004^100001^140003 | I110: 69^2440^11400 | J110: 46^1220^9500 | K110: 10000^10000^10000 | L110: 主线关卡波次奖励-37
A111: 21038 | B111: 0 | C111: 0 | D111: 0 | E111: 0 | F111: 0 | G111: 1 | H111: 140004^100001^140003 | I111: 70^2480^12000 | J111: 47^1240^10000 | K111: 10000^10000^10000 | L111: 主线关卡波次奖励-38
A112: 21039 | B112: 0 | C112: 0 | D112: 0 | E112: 0 | F112: 0 | G112: 1 | H112: 140004^100001^140003 | I112: 72^2520^12600 | J112: 48^1260^10500 | K112: 10000^10000^10000 | L112: 主线关卡波次奖励-39
A113: 21040 | B113: 0 | C113: 0 | D113: 0 | E113: 0 | F113: 0 | G113: 1 | H113: 140004^100001^140003 | I113: 73^2560^13200 | J113: 49^1280^11000 | K113: 10000^10000^10000 | L113: 主线关卡波次奖励-40
A114: 21041 | B114: 0 | C114: 0 | D114: 0 | E114: 0 | F114: 0 | G114: 1 | H114: 140004^100001^140003 | I114: 75^2600^13800 | J114: 50^1300^11500 | K114: 10000^10000^10000 | L114: 主线关卡波次奖励-41
A115: 21042 | B115: 0 | C115: 0 | D115: 0 | E115: 0 | F115: 0 | G115: 1 | H115: 140004^100001^140003 | I115: 76^2640^14400 | J115: 51^1320^12000 | K115: 10000^10000^10000 | L115: 主线关卡波次奖励-42
A116: 21043 | B116: 0 | C116: 0 | D116: 0 | E116: 0 | F116: 0 | G116: 1 | H116: 140004^100001^140003 | I116: 78^2680^15000 | J116: 52^1340^12500 | K116: 10000^10000^10000 | L116: 主线关卡波次奖励-43
A117: 21044 | B117: 0 | C117: 0 | D117: 0 | E117: 0 | F117: 0 | G117: 1 | H117: 140004^100001^140003 | I117: 79^2720^15600 | J117: 53^1360^13000 | K117: 10000^10000^10000 | L117: 主线关卡波次奖励-44
A118: 21045 | B118: 0 | C118: 0 | D118: 0 | E118: 0 | F118: 0 | G118: 1 | H118: 140004^100001^140003 | I118: 81^2760^16800 | J118: 54^1380^14000 | K118: 10000^10000^10000 | L118: 主线关卡波次奖励-45
A119: 21046 | B119: 0 | C119: 0 | D119: 0 | E119: 0 | F119: 0 | G119: 1 | H119: 140004^100001^140003 | I119: 90^2800^18000 | J119: 60^1400^15000 | K119: 10000^10000^10000 | L119: 主线关卡波次奖励-46
A120: 21047 | B120: 0 | C120: 0 | D120: 0 | E120: 0 | F120: 0 | G120: 1 | H120: 140004^100001^140003 | I120: 91^2840^19200 | J120: 61^1420^16000 | K120: 10000^10000^10000 | L120: 主线关卡波次奖励-47
A121: 21048 | B121: 0 | C121: 0 | D121: 0 | E121: 0 | F121: 0 | G121: 1 | H121: 140004^100001^140003 | I121: 93^2880^20400 | J121: 62^1440^17000 | K121: 10000^10000^10000 | L121: 主线关卡波次奖励-48
A122: 21049 | B122: 0 | C122: 0 | D122: 0 | E122: 0 | F122: 0 | G122: 1 | H122: 140004^100001^140003 | I122: 94^2920^21600 | J122: 63^1460^18000 | K122: 10000^10000^10000 | L122: 主线关卡波次奖励-49
A123: 21050 | B123: 0 | C123: 0 | D123: 0 | E123: 0 | F123: 0 | G123: 1 | H123: 140004^100001^140003 | I123: 96^2960^22800 | J123: 64^1480^19000 | K123: 10000^10000^10000 | L123: 主线关卡波次奖励-50
A124: 21051 | B124: 0 | C124: 0 | D124: 0 | E124: 0 | F124: 0 | G124: 1 | H124: 140004^100001^140003 | I124: 105^3000^24000 | J124: 70^1500^20000 | K124: 10000^10000^10000 | L124: 主线关卡波次奖励-51
A125: 21052 | B125: 0 | C125: 0 | D125: 0 | E125: 0 | F125: 0 | G125: 1 | H125: 140004^100001^140003 | I125: 106^3040^25200 | J125: 71^1520^21000 | K125: 10000^10000^10000 | L125: 主线关卡波次奖励-52
A126: 21053 | B126: 0 | C126: 0 | D126: 0 | E126: 0 | F126: 0 | G126: 1 | H126: 140004^100001^140003 | I126: 108^3080^26400 | J126: 72^1540^22000 | K126: 10000^10000^10000 | L126: 主线关卡波次奖励-53
A127: 21054 | B127: 0 | C127: 0 | D127: 0 | E127: 0 | F127: 0 | G127: 1 | H127: 140004^100001^140003 | I127: 109^3120^27600 | J127: 73^1560^23000 | K127: 10000^10000^10000 | L127: 主线关卡波次奖励-54
A128: 21055 | B128: 0 | C128: 0 | D128: 0 | E128: 0 | F128: 0 | G128: 1 | H128: 140004^100001^140003 | I128: 111^3160^28800 | J128: 74^1580^24000 | K128: 10000^10000^10000 | L128: 主线关卡波次奖励-55
A129: 21056 | B129: 0 | C129: 0 | D129: 0 | E129: 0 | F129: 0 | G129: 1 | H129: 140004^100001^140003 | I129: 120^3200^31200 | J129: 80^1600^26000 | K129: 10000^10000^10000 | L129: 主线关卡波次奖励-56
A130: 21057 | B130: 0 | C130: 0 | D130: 0 | E130: 0 | F130: 0 | G130: 1 | H130: 140004^100001^140003 | I130: 121^3240^33600 | J130: 81^1620^28000 | K130: 10000^10000^10000 | L130: 主线关卡波次奖励-57
A131: 21058 | B131: 0 | C131: 0 | D131: 0 | E131: 0 | F131: 0 | G131: 1 | H131: 140004^100001^140003 | I131: 123^3280^36000 | J131: 82^1640^30000 | K131: 10000^10000^10000 | L131: 主线关卡波次奖励-58
A132: 21059 | B132: 0 | C132: 0 | D132: 0 | E132: 0 | F132: 0 | G132: 1 | H132: 140004^100001^140003 | I132: 124^3320^38400 | J132: 83^1660^32000 | K132: 10000^10000^10000 | L132: 主线关卡波次奖励-59
A133: 21060 | B133: 0 | C133: 0 | D133: 0 | E133: 0 | F133: 0 | G133: 1 | H133: 140004^100001^140003 | I133: 126^3360^40800 | J133: 84^1680^34000 | K133: 10000^10000^10000 | L133: 主线关卡波次奖励-60
A134: 21061 | B134: 0 | C134: 0 | D134: 0 | E134: 0 | F134: 0 | G134: 1 | H134: 140004^100001^140003 | I134: 135^3400^43200 | J134: 90^1700^36000 | K134: 10000^10000^10000 | L134: 主线关卡波次奖励-61
A135: 21062 | B135: 0 | C135: 0 | D135: 0 | E135: 0 | F135: 0 | G135: 1 | H135: 140004^100001^140003 | I135: 136^3440^45600 | J135: 91^1720^38000 | K135: 10000^10000^10000 | L135: 主线关卡波次奖励-62
A136: 21063 | B136: 0 | C136: 0 | D136: 0 | E136: 0 | F136: 0 | G136: 1 | H136: 140004^100001^140003 | I136: 138^3480^48000 | J136: 92^1740^40000 | K136: 10000^10000^10000 | L136: 主线关卡波次奖励-63
A137: 21064 | B137: 0 | C137: 0 | D137: 0 | E137: 0 | F137: 0 | G137: 1 | H137: 140004^100001^140003 | I137: 139^3520^50400 | J137: 93^1760^42000 | K137: 10000^10000^10000 | L137: 主线关卡波次奖励-64
A138: 21065 | B138: 0 | C138: 0 | D138: 0 | E138: 0 | F138: 0 | G138: 1 | H138: 140004^100001^140003 | I138: 141^3560^52800 | J138: 94^1780^44000 | K138: 10000^10000^10000 | L138: 主线关卡波次奖励-65
A139: 21066 | B139: 0 | C139: 0 | D139: 0 | E139: 0 | F139: 0 | G139: 1 | H139: 140004^100001^140003 | I139: 150^3600^56400 | J139: 100^1800^47000 | K139: 10000^10000^10000 | L139: 主线关卡波次奖励-66
A140: 21067 | B140: 0 | C140: 0 | D140: 0 | E140: 0 | F140: 0 | G140: 1 | H140: 140004^100001^140003 | I140: 151^3640^60000 | J140: 101^1820^50000 | K140: 10000^10000^10000 | L140: 主线关卡波次奖励-67
A141: 21068 | B141: 0 | C141: 0 | D141: 0 | E141: 0 | F141: 0 | G141: 1 | H141: 140004^100001^140003 | I141: 153^3680^63600 | J141: 102^1840^53000 | K141: 10000^10000^10000 | L141: 主线关卡波次奖励-68
A142: 21069 | B142: 0 | C142: 0 | D142: 0 | E142: 0 | F142: 0 | G142: 1 | H142: 140004^100001^140003 | I142: 154^3720^67200 | J142: 103^1860^56000 | K142: 10000^10000^10000 | L142: 主线关卡波次奖励-69
A143: 21070 | B143: 0 | C143: 0 | D143: 0 | E143: 0 | F143: 0 | G143: 1 | H143: 140004^100001^140003 | I143: 156^3760^70800 | J143: 104^1880^59000 | K143: 10000^10000^10000 | L143: 主线关卡波次奖励-70
A144: 21071 | B144: 0 | C144: 0 | D144: 0 | E144: 0 | F144: 0 | G144: 1 | H144: 140004^100001^140003 | I144: 165^3800^74400 | J144: 110^1900^62000 | K144: 10000^10000^10000 | L144: 主线关卡波次奖励-71
A145: 21072 | B145: 0 | C145: 0 | D145: 0 | E145: 0 | F145: 0 | G145: 1 | H145: 140004^100001^140003 | I145: 166^3840^78000 | J145: 111^1920^65000 | K145: 10000^10000^10000 | L145: 主线关卡波次奖励-72
A146: 21073 | B146: 0 | C146: 0 | D146: 0 | E146: 0 | F146: 0 | G146: 1 | H146: 140004^100001^140003 | I146: 168^3880^81600 | J146: 112^1940^68000 | K146: 10000^10000^10000 | L146: 主线关卡波次奖励-73
A147: 21074 | B147: 0 | C147: 0 | D147: 0 | E147: 0 | F147: 0 | G147: 1 | H147: 140004^100001^140003 | I147: 169^3920^85200 | J147: 113^1960^71000 | K147: 10000^10000^10000 | L147: 主线关卡波次奖励-74
A148: 21075 | B148: 0 | C148: 0 | D148: 0 | E148: 0 | F148: 0 | G148: 1 | H148: 140004^100001^140003 | I148: 171^3960^88800 | J148: 114^1980^74000 | K148: 10000^10000^10000 | L148: 主线关卡波次奖励-75
A149: 30001 | B149: 1 | C149: 140007^140008^140009^140010^140011^140012 | D149: 1^1^1^1^1^1 | E149: 1^1^1^1^1^1 | F149: 1666^1666^1667^1667^1667^1667 | G149: 0 | H149: 0 | I149: 0 | J149: 0 | K149: 0 | L149: 卷轴随机箱
A150: 30002 | B150: 1 | C150: 210101^210201^210301^210401^210501^210601^210701^210801^210901^211001^220101^220201^220301^220401^220501^220601^230101^230201^230301^230401^230501^230601^240101^240201^240301^240401^240501^240601^250101^250201^250301^250401^250501^250601^260101^260201^260301^260401^260501^260601 | D150: 1^1^1^1^1^1^1^1^1^1^1^1^1^1^1^1^1^1^1^1^1^1^1^1^1^1^1^1^1^1^1^1^1^1^1^1^1^1^1^1 | E150: 1^1^1^1^1^1^1^1^1^1^1^1^1^1^1^1^1^1^1^1^1^1^1^1^1^1^1^1^1^1^1^1^1^1^1^1^1^1^1^1 | F150: 250^250^250^250^250^250^250^250^250^250^250^250^250^250^250^250^250^250^250^250^250^250^250^250^250^250^250^250^250^250^250^250^250^250^250^250^250^250^250^250 | G150: 0 | H150: 0 | I150: 0 | J150: 0 | K150: 0 | L150: 普通装备箱
A151: 30003 | B151: 1 | C151: 210102^210202^210302^210402^210502^210602^210702^210802^210902^211002^220102^220202^220302^220402^220502^220602^230102^230202^230302^230402^230502^230602^240102^240202^240302^240402^240502^240602^250102^250202^250302^250402^250502^250602^260102^260202^260302^260402^260502^260602 | D151: 1^1^1^1^1^1^1^1^1^1^1^1^1^1^1^1^1^1^1^1^1^1^1^1^1^1^1^1^1^1^1^1^1^1^1^1^1^1^1^1 | E151: 1^1^1^1^1^1^1^1^1^1^1^1^1^1^1^1^1^1^1^1^1^1^1^1^1^1^1^1^1^1^1^1^1^1^1^1^1^1^1^1 | F151: 250^250^250^250^250^250^250^250^250^250^250^250^250^250^250^250^250^250^250^250^250^250^250^250^250^250^250^250^250^250^250^250^250^250^250^250^250^250^250^250 | G151: 0 | H151: 0 | I151: 0 | J151: 0 | K151: 0 | L151: 优秀装备箱
A152: 30004 | B152: 1 | C152: 210103^210203^210303^210403^210503^210603^210703^210803^210903^211003^220103^220203^220303^220403^220503^220603^230103^230203^230303^230403^230503^230603^240103^240203^240303^240403^240503^240603^250103^250203^250303^250403^250503^250603^260103^260203^260303^260403^260503^260603 | D152: 1^1^1^1^1^1^1^1^1^1^1^1^1^1^1^1^1^1^1^1^1^1^1^1^1^1^1^1^1^1^1^1^1^1^1^1^1^1^1^1 | E152: 1^1^1^1^1^1^1^1^1^1^1^1^1^1^1^1^1^1^1^1^1^1^1^1^1^1^1^1^1^1^1^1^1^1^1^1^1^1^1^1 | F152: 250^250^250^250^250^250^250^250^250^250^250^250^250^250^250^250^250^250^250^250^250^250^250^250^250^250^250^250^250^250^250^250^250^250^250^250^250^250^250^250 | G152: 0 | H152: 0 | I152: 0 | J152: 0 | K152: 0 | L152: 精良装备箱
A153: 30005 | B153: 1 | C153: 210104^210204^210304^210404^210504^210604^210704^210804^210904^211004^220104^220204^220304^220404^220504^220604^230104^230204^230304^230404^230504^230604^240104^240204^240304^240404^240504^240604^250104^250204^250304^250404^250504^250604^260104^260204^260304^260404^260504^260604 | D153: 1^1^1^1^1^1^1^1^1^1^1^1^1^1^1^1^1^1^1^1^1^1^1^1^1^1^1^1^1^1^1^1^1^1^1^1^1^1^1^1 | E153: 1^1^1^1^1^1^1^1^1^1^1^1^1^1^1^1^1^1^1^1^1^1^1^1^1^1^1^1^1^1^1^1^1^1^1^1^1^1^1^1 | F153: 250^250^250^250^250^250^250^250^250^250^250^250^250^250^250^250^250^250^250^250^250^250^250^250^250^250^250^250^250^250^250^250^250^250^250^250^250^250^250^250 | G153: 0 | H153: 0 | I153: 0 | J153: 0 | K153: 0 | L153: 稀有装备箱
A154: 30006 | B154: 1 | C154: 210107^210207^210307^210407^210507^210607^210707^210807^210907^211007^220107^220207^220307^220407^220507^220607^230107^230207^230307^230407^230507^230607^240107^240207^240307^240407^240507^240607^250107^250207^250307^250407^250507^250607^260107^260207^260307^260407^260507^260607 | D154: 1^1^1^1^1^1^1^1^1^1^1^1^1^1^1^1^1^1^1^1^1^1^1^1^1^1^1^1^1^1^1^1^1^1^1^1^1^1^1^1 | E154: 1^1^1^1^1^1^1^1^1^1^1^1^1^1^1^1^1^1^1^1^1^1^1^1^1^1^1^1^1^1^1^1^1^1^1^1^1^1^1^1 | F154: 250^250^250^250^250^250^250^250^250^250^250^250^250^250^250^250^250^250^250^250^250^250^250^250^250^250^250^250^250^250^250^250^250^250^250^250^250^250^250^250 | G154: 0 | H154: 0 | I154: 0 | J154: 0 | K154: 0 | L154: 传说装备箱
A155: 30007 | B155: 1 | C155: 210111^210211^210311^210411^210511^210611^210711^210811^210911^211011^220111^220211^220311^220411^220511^220611^230111^230211^230311^230411^230511^230611^240111^240211^240311^240411^240511^240611^250111^250211^250311^250411^250511^250611^260111^260211^260311^260411^260511^260611 | D155: 1^1^1^1^1^1^1^1^1^1^1^1^1^1^1^1^1^1^1^1^1^1^1^1^1^1^1^1^1^1^1^1^1^1^1^1^1^1^1^1 | E155: 1^1^1^1^1^1^1^1^1^1^1^1^1^1^1^1^1^1^1^1^1^1^1^1^1^1^1^1^1^1^1^1^1^1^1^1^1^1^1^1 | F155: 250^250^250^250^250^250^250^250^250^250^250^250^250^250^250^250^250^250^250^250^250^250^250^250^250^250^250^250^250^250^250^250^250^250^250^250^250^250^250^250 | G155: 0 | H155: 0 | I155: 0 | J155: 0 | K155: 0 | L155: 神话装备箱
A156: 30008 | B156: 1 | C156: 10101^10301^10501^12501^10801^10901^11001^11101^12001^11201^11501^11601^10601^12101^11301^10401^11701^11901^10701 | D156: 1^1^1^1^1^1^1^1^1^1^1^1^1^1^1^1^1^1^1 | E156: 1^1^1^1^1^1^1^1^1^1^1^1^1^1^1^1^1^1^1 | F156: 789^789^789^789^789^789^264^789^789^263^263^526^264^526^264^526^264^264^264 | G156: 0 | H156: 0 | I156: 0 | J156: 0 | K156: 0 | L156: 普通英雄箱
A157: 30009 | B157: 1 | C157: 10102^10302^10502^12502^10802^10902^11002^11102^12002^11202^11502^11602^10602^12102^11302^10402^11702^11902^10702 | D157: 1^1^1^1^1^1^1^1^1^1^1^1^1^1^1^1^1^1^1 | E157: 1^1^1^1^1^1^1^1^1^1^1^1^1^1^1^1^1^1^1 | F157: 789^789^789^789^789^789^264^789^789^263^263^526^264^526^264^526^264^264^264 | G157: 0 | H157: 0 | I157: 0 | J157: 0 | K157: 0 | L157: 优秀英雄箱
A158: 30010 | B158: 1 | C158: 10103^10303^10503^12503^10803^10903^11003^11103^12003^11203^11503^11603^10603^12103^11303^10403^11703^11903^10703 | D158: 1^1^1^1^1^1^1^1^1^1^1^1^1^1^1^1^1^1^1 | E158: 1^1^1^1^1^1^1^1^1^1^1^1^1^1^1^1^1^1^1 | F158: 789^789^789^789^789^789^264^789^789^263^263^526^264^526^264^526^264^264^264 | G158: 0 | H158: 0 | I158: 0 | J158: 0 | K158: 0 | L158: 稀有英雄箱
A159: 30011 | B159: 1 | C159: 10104^10304^10504^12504^10804^10904^11004^11104^12004^11204^11504^11604^10604^12104^11304^10404^11704^11904^10704 | D159: 1^1^1^1^1^1^1^1^1^1^1^1^1^1^1^1^1^1^1 | E159: 1^1^1^1^1^1^1^1^1^1^1^1^1^1^1^1^1^1^1 | F159: 789^789^789^789^789^789^264^789^789^263^263^526^264^526^264^526^264^264^264 | G159: 0 | H159: 0 | I159: 0 | J159: 0 | K159: 0 | L159: 精英英雄箱
A160: 30012 | B160: 1 | C160: 10107^10307^10507^12507^10807^10907^11007^11107^12007^11207^11507^11607^10607^12107^11307^10407^11707^11907^10707 | D160: 1^1^1^1^1^1^1^1^1^1^1^1^1^1^1^1^1^1^1 | E160: 1^1^1^1^1^1^1^1^1^1^1^1^1^1^1^1^1^1^1 | F160: 789^789^789^789^789^789^264^789^789^263^263^526^264^526^264^526^264^264^264 | G160: 0 | H160: 0 | I160: 0 | J160: 0 | K160: 0 | L160: 传说英雄箱
A161: 30013 | B161: 1 | C161: 10111^10311^10511^12511^10811^10911^11011^11111^12011^11211^11511^11611^10611^12111^11311^10411^11711^11911^10711 | D161: 1^1^1^1^1^1^1^1^1^1^1^1^1^1^1^1^1^1^1 | E161: 1^1^1^1^1^1^1^1^1^1^1^1^1^1^1^1^1^1^1 | F161: 789^789^789^789^789^789^264^789^789^263^263^526^264^526^264^526^264^264^264 | G161: 0 | H161: 0 | I161: 0 | J161: 0 | K161: 0 | L161: 神话英雄箱
A162: 30014 | B162: 0 | C162: 0 | D162: 0 | E162: 0 | F162: 0 | G162: 1 | H162: 150000^150003^150004^150005^150002^150006^150007^150001 | I162: 1^1^1^1^1^1^1^1 | J162: 1^1^1^1^1^1^1^1 | K162: 10000^10000^10000^10000^10000^10000^10000 | L162: 碎片选择袋
A163: 30015 | B163: 1 | C163: 140001 | D163: 120 | E163: 80 | F163: 10000 | G163: 0 | H163: 0 | I163: 0 | J163: 0 | K163: 0 | L163: 铁矿石X100
A164: 30016 | B164: 1 | C164: 140001 | D164: 600 | E164: 400 | F164: 10000 | G164: 0 | H164: 0 | I164: 0 | J164: 0 | K164: 0 | L164: 铁矿石X500
A165: 30017 | B165: 1 | C165: 140001 | D165: 1200 | E165: 800 | F165: 10000 | G165: 0 | H165: 0 | I165: 0 | J165: 0 | K165: 0 | L165: 铁矿石X1000
A166: 30018 | B166: 1 | C166: 140001 | D166: 5500 | E166: 4500 | F166: 10000 | G166: 0 | H166: 0 | I166: 0 | J166: 0 | K166: 0 | L166: 铁矿石X5000
A167: 30019 | B167: 1 | C167: 140002 | D167: 120 | E167: 80 | F167: 10000 | G167: 0 | H167: 0 | I167: 0 | J167: 0 | K167: 0 | L167: 木材X100
A168: 30020 | B168: 1 | C168: 140002 | D168: 600 | E168: 400 | F168: 10000 | G168: 0 | H168: 0 | I168: 0 | J168: 0 | K168: 0 | L168: 木材X500
A169: 30021 | B169: 1 | C169: 140002 | D169: 1200 | E169: 800 | F169: 10000 | G169: 0 | H169: 0 | I169: 0 | J169: 0 | K169: 0 | L169: 木材X1000
A170: 30022 | B170: 1 | C170: 140002 | D170: 5500 | E170: 4500 | F170: 10000 | G170: 0 | H170: 0 | I170: 0 | J170: 0 | K170: 0 | L170: 木材X5000
A171: 30023 | B171: 1 | C171: 140003 | D171: 120 | E171: 80 | F171: 10000 | G171: 0 | H171: 0 | I171: 0 | J171: 0 | K171: 0 | L171: 经验石X100
A172: 30024 | B172: 1 | C172: 140003 | D172: 600 | E172: 400 | F172: 10000 | G172: 0 | H172: 0 | I172: 0 | J172: 0 | K172: 0 | L172: 经验石X500
A173: 30025 | B173: 1 | C173: 140003 | D173: 1200 | E173: 800 | F173: 10000 | G173: 0 | H173: 0 | I173: 0 | J173: 0 | K173: 0 | L173: 经验石X1000
A174: 30026 | B174: 1 | C174: 140003 | D174: 5500 | E174: 4500 | F174: 10000 | G174: 0 | H174: 0 | I174: 0 | J174: 0 | K174: 0 | L174: 经验石X5000
A175: 30027 | B175: 1 | C175: 100001 | D175: 120 | E175: 80 | F175: 10000 | G175: 0 | H175: 0 | I175: 0 | J175: 0 | K175: 0 | L175: 金币X100
A176: 30028 | B176: 1 | C176: 100001 | D176: 600 | E176: 400 | F176: 10000 | G176: 0 | H176: 0 | I176: 0 | J176: 0 | K176: 0 | L176: 金币X500
A177: 30029 | B177: 1 | C177: 100001 | D177: 1200 | E177: 800 | F177: 10000 | G177: 0 | H177: 0 | I177: 0 | J177: 0 | K177: 0 | L177: 金币X1000
A178: 30030 | B178: 1 | C178: 100001 | D178: 5500 | E178: 4500 | F178: 10000 | G178: 0 | H178: 0 | I178: 0 | J178: 0 | K178: 0 | L178: 金币X5000
A179: 30040 | B179: 0 | C179: 0 | D179: 0 | E179: 0 | F179: 0 | G179: 1 | H179: 210103^210203^210303^210403^210503^210603^210703^210803^210903^211003^220103^220203^220303^220403^220503^220603^230103^230203^230303^230403^230503^230603^240103^240203^240303^240403^240503^240603^250103^250203^250303^250403^250503^250603^260103^260203^260303^260403^260503^260603 | I179: 1^1^1^1^1^1^1^1^1^1^1^1^1^1^1^1^1^1^1^1^1^1^1^1^1^1^1^1^1^1^1^1^1^1^1^1^1^1^1^1 | J179: 1^1^1^1^1^1^1^1^1^1^1^1^1^1^1^1^1^1^1^1^1^1^1^1^1^1^1^1^1^1^1^1^1^1^1^1^1^1^1^1 | K179: 10000^10000^10000^10000^10000^10000^10000^10000^10000^10000^10000^10000^10000^10000^10000^10000^10000^10000^10000^10000^10000^10000^10000^10000^10000^10000^10000^10000^10000^10000^10000^10000^10000^10000^10000^10000^10000^10000^10000^10000 | L179: 精良装备选择箱
A180: 30041 | B180: 0 | C180: 0 | D180: 0 | E180: 0 | F180: 0 | G180: 1 | H180: 210104^210204^210304^210404^210504^210604^210704^210804^210904^211004^220104^220204^220304^220404^220504^220604^230104^230204^230304^230404^230504^230604^240104^240204^240304^240404^240504^240604^250104^250204^250304^250404^250504^250604^260104^260204^260304^260404^260504^260604 | I180: 1^1^1^1^1^1^1^1^1^1^1^1^1^1^1^1^1^1^1^1^1^1^1^1^1^1^1^1^1^1^1^1^1^1^1^1^1^1^1^1 | J180: 1^1^1^1^1^1^1^1^1^1^1^1^1^1^1^1^1^1^1^1^1^1^1^1^1^1^1^1^1^1^1^1^1^1^1^1^1^1^1^1 | K180: 10000^10000^10000^10000^10000^10000^10000^10000^10000^10000^10000^10000^10000^10000^10000^10000^10000^10000^10000^10000^10000^10000^10000^10000^10000^10000^10000^10000^10000^10000^10000^10000^10000^10000^10000^10000^10000^10000^10000^10000 | L180: 稀有装备选择箱
A181: 30042 | B181: 0 | C181: 0 | D181: 0 | E181: 0 | F181: 0 | G181: 1 | H181: 210107^210207^210307^210407^210507^210607^210707^210807^210907^211007^220107^220207^220307^220407^220507^220607^230107^230207^230307^230407^230507^230607^240107^240207^240307^240407^240507^240607^250107^250207^250307^250407^250507^250607^260107^260207^260307^260407^260507^260607 | I181: 1^1^1^1^1^1^1^1^1^1^1^1^1^1^1^1^1^1^1^1^1^1^1^1^1^1^1^1^1^1^1^1^1^1^1^1^1^1^1^1 | J181: 1^1^1^1^1^1^1^1^1^1^1^1^1^1^1^1^1^1^1^1^1^1^1^1^1^1^1^1^1^1^1^1^1^1^1^1^1^1^1^1 | K181: 10000^10000^10000^10000^10000^10000^10000^10000^10000^10000^10000^10000^10000^10000^10000^10000^10000^10000^10000^10000^10000^10000^10000^10000^10000^10000^10000^10000^10000^10000^10000^10000^10000^10000^10000^10000^10000^10000^10000^10000 | L181: 传说装备选择箱
A182: 30043 | B182: 0 | C182: 0 | D182: 0 | E182: 0 | F182: 0 | G182: 1 | H182: 140016^140017^140018^140019^140020^140021 | I182: 1^1^1^1^1^1 | J182: 1^1^1^1^1^1 | K182: 10000^10000^10000^10000^10000^10000 | L182: 稀有配件任选箱
A183: 30044 | B183: 0 | C183: 0 | D183: 0 | E183: 0 | F183: 0 | G183: 1 | H183: 140022^140023^140024^140025^140026^140027 | I183: 1^1^1^1^1^1 | J183: 1^1^1^1^1^1 | K183: 10000^10000^10000^10000^10000^10000 | L183: 传说配件任选箱
A184: 30045 | B184: 0 | C184: 0 | D184: 0 | E184: 0 | F184: 0 | G184: 1 | H184: 140028^140029^140030^140031^140032^140033 | I184: 1^1^1^1^1^1 | J184: 1^1^1^1^1^1 | K184: 10000^10000^10000^10000^10000^10000 | L184: 神话配件任选箱
A185: 80001 | B185: 1 | C185: 210101^210201^210301^210401^210501^210601^210701^210801^210901^211001^220101^220201^220301^220401^220501^220601^230101^230201^230301^230401^230501^230601^240101^240201^240301^240401^240501^240601^250101^250201^250301^250401^250501^250601^260101^260201^260301^260401^260501^260601 | D185: 1^1^1^1^1^1^1^1^1^1^1^1^1^1^1^1^1^1^1^1^1^1^1^1^1^1^1^1^1^1^1^1^1^1^1^1^1^1^1^1 | E185: 1^1^1^1^1^1^1^1^1^1^1^1^1^1^1^1^1^1^1^1^1^1^1^1^1^1^1^1^1^1^1^1^1^1^1^1^1^1^1^1 | F185: 250^250^250^250^250^250^250^250^250^250^250^250^250^250^250^250^250^250^250^250^250^250^250^250^250^250^250^250^250^250^250^250^250^250^250^250^250^250^250^250 | G185: 0 | H185: 0 | I185: 0 | J185: 0 | K185: 0 | L185: 遗迹探险_难度1_普通关卡随机掉落白装（抽1件）
A186: 80002 | B186: 2 | C186: 210101^210201^210301^210401^210501^210601^210701^210801^210901^211001^220101^220201^220301^220401^220501^220601^230101^230201^230301^230401^230501^230601^240101^240201^240301^240401^240501^240601^250101^250201^250301^250401^250501^250601^260101^260201^260301^260401^260501^260601 | D186: 1^1^1^1^1^1^1^1^1^1^1^1^1^1^1^1^1^1^1^1^1^1^1^1^1^1^1^1^1^1^1^1^1^1^1^1^1^1^1^1 | E186: 1^1^1^1^1^1^1^1^1^1^1^1^1^1^1^1^1^1^1^1^1^1^1^1^1^1^1^1^1^1^1^1^1^1^1^1^1^1^1^1 | F186: 250^250^250^250^250^250^250^250^250^250^250^250^250^250^250^250^250^250^250^250^250^250^250^250^250^250^250^250^250^250^250^250^250^250^250^250^250^250^250^250 | G186: 0 | H186: 0 | I186: 0 | J186: 0 | K186: 0 | L186: 遗迹探险_难度2_普通关卡随机掉落白装（抽2件）
A187: 80003 | B187: 1 | C187: 210102^210202^210302^210402^210502^210602^210702^210802^210902^211002^220102^220202^220302^220402^220502^220602^230102^230202^230302^230402^230502^230602^240102^240202^240302^240402^240502^240602^250102^250202^250302^250402^250502^250602^260102^260202^260302^260402^260502^260602 | D187: 1^1^1^1^1^1^1^1^1^1^1^1^1^1^1^1^1^1^1^1^1^1^1^1^1^1^1^1^1^1^1^1^1^1^1^1^1^1^1^1 | E187: 1^1^1^1^1^1^1^1^1^1^1^1^1^1^1^1^1^1^1^1^1^1^1^1^1^1^1^1^1^1^1^1^1^1^1^1^1^1^1^1 | F187: 250^250^250^250^250^250^250^250^250^250^250^250^250^250^250^250^250^250^250^250^250^250^250^250^250^250^250^250^250^250^250^250^250^250^250^250^250^250^250^250 | G187: 0 | H187: 0 | I187: 0 | J187: 0 | K187: 0 | L187: 遗迹探险_难度3_普通关卡随机掉落白装/绿装（抽1件）
A188: 80004 | B188: 2 | C188: 210102^210202^210302^210402^210502^210602^210702^210802^210902^211002^220102^220202^220302^220402^220502^220602^230102^230202^230302^230402^230502^230602^240102^240202^240302^240402^240502^240602^250102^250202^250302^250402^250502^250602^260102^260202^260302^260402^260502^260602 | D188: 1^1^1^1^1^1^1^1^1^1^1^1^1^1^1^1^1^1^1^1^1^1^1^1^1^1^1^1^1^1^1^1^1^1^1^1^1^1^1^1 | E188: 1^1^1^1^1^1^1^1^1^1^1^1^1^1^1^1^1^1^1^1^1^1^1^1^1^1^1^1^1^1^1^1^1^1^1^1^1^1^1^1 | F188: 250^250^250^250^250^250^250^250^250^250^250^250^250^250^250^250^250^250^250^250^250^250^250^250^250^250^250^250^250^250^250^250^250^250^250^250^250^250^250^250 | G188: 0 | H188: 0 | I188: 0 | J188: 0 | K188: 0 | L188: 遗迹探险_难度4_普通关卡随机掉落白装/绿装（抽2件）
A189: 80005 | B189: 1 | C189: 210103^210203^210303^210403^210503^210603^210703^210803^210903^211003^220103^220203^220303^220403^220503^220603^230103^230203^230303^230403^230503^230603^240103^240203^240303^240403^240503^240603^250103^250203^250303^250403^250503^250603^260103^260203^260303^260403^260503^260603 | D189: 1^1^1^1^1^1^1^1^1^1^1^1^1^1^1^1^1^1^1^1^1^1^1^1^1^1^1^1^1^1^1^1^1^1^1^1^1^1^1^1 | E189: 1^1^1^1^1^1^1^1^1^1^1^1^1^1^1^1^1^1^1^1^1^1^1^1^1^1^1^1^1^1^1^1^1^1^1^1^1^1^1^1 | F189: 250^250^250^250^250^250^250^250^250^250^250^250^250^250^250^250^250^250^250^250^250^250^250^250^250^250^250^250^250^250^250^250^250^250^250^250^250^250^250^250 | G189: 0 | H189: 0 | I189: 0 | J189: 0 | K189: 0 | L189: 遗迹探险_难度5_普通关卡随机掉落白装/绿装/蓝装（抽1件）
A190: 80006 | B190: 2 | C190: 210103^210203^210303^210403^210503^210603^210703^210803^210903^211003^220103^220203^220303^220403^220503^220603^230103^230203^230303^230403^230503^230603^240103^240203^240303^240403^240503^240603^250103^250203^250303^250403^250503^250603^260103^260203^260303^260403^260503^260603 | D190: 1^1^1^1^1^1^1^1^1^1^1^1^1^1^1^1^1^1^1^1^1^1^1^1^1^1^1^1^1^1^1^1^1^1^1^1^1^1^1^1 | E190: 1^1^1^1^1^1^1^1^1^1^1^1^1^1^1^1^1^1^1^1^1^1^1^1^1^1^1^1^1^1^1^1^1^1^1^1^1^1^1^1 | F190: 250^250^250^250^250^250^250^250^250^250^250^250^250^250^250^250^250^250^250^250^250^250^250^250^250^250^250^250^250^250^250^250^250^250^250^250^250^250^250^250 | G190: 0 | H190: 0 | I190: 0 | J190: 0 | K190: 0 | L190: 遗迹探险_难度6_普通关卡随机掉落白装/绿装/蓝装（抽2件）
A191: 80007 | B191: 2 | C191: 210101^210201^210301^210401^210501^210601^210701^210801^210901^211001^220101^220201^220301^220401^220501^220601^230101^230201^230301^230401^230501^230601^240101^240201^240301^240401^240501^240601^250101^250201^250301^250401^250501^250601^260101^260201^260301^260401^260501^260601 | D191: 1^1^1^1^1^1^1^1^1^1^1^1^1^1^1^1^1^1^1^1^1^1^1^1^1^1^1^1^1^1^1^1^1^1^1^1^1^1^1^1 | E191: 1^1^1^1^1^1^1^1^1^1^1^1^1^1^1^1^1^1^1^1^1^1^1^1^1^1^1^1^1^1^1^1^1^1^1^1^1^1^1^1 | F191: 250^250^250^250^250^250^250^250^250^250^250^250^250^250^250^250^250^250^250^250^250^250^250^250^250^250^250^250^250^250^250^250^250^250^250^250^250^250^250^250 | G191: 0 | H191: 0 | I191: 0 | J191: 0 | K191: 0 | L191: 遗迹探险_难度1_BOSS关卡随机掉落白装（抽2件）
A192: 80008 | B192: 3 | C192: 210101^210201^210301^210401^210501^210601^210701^210801^210901^211001^220101^220201^220301^220401^220501^220601^230101^230201^230301^230401^230501^230601^240101^240201^240301^240401^240501^240601^250101^250201^250301^250401^250501^250601^260101^260201^260301^260401^260501^260601 | D192: 1^1^1^1^1^1^1^1^1^1^1^1^1^1^1^1^1^1^1^1^1^1^1^1^1^1^1^1^1^1^1^1^1^1^1^1^1^1^1^1 | E192: 1^1^1^1^1^1^1^1^1^1^1^1^1^1^1^1^1^1^1^1^1^1^1^1^1^1^1^1^1^1^1^1^1^1^1^1^1^1^1^1 | F192: 250^250^250^250^250^250^250^250^250^250^250^250^250^250^250^250^250^250^250^250^250^250^250^250^250^250^250^250^250^250^250^250^250^250^250^250^250^250^250^250 | G192: 0 | H192: 0 | I192: 0 | J192: 0 | K192: 0 | L192: 遗迹探险_难度2_BOSS关卡随机掉落白装（抽3件）
A193: 80009 | B193: 2 | C193: 210102^210202^210302^210402^210502^210602^210702^210802^210902^211002^220102^220202^220302^220402^220502^220602^230102^230202^230302^230402^230502^230602^240102^240202^240302^240402^240502^240602^250102^250202^250302^250402^250502^250602^260102^260202^260302^260402^260502^260602 | D193: 1^1^1^1^1^1^1^1^1^1^1^1^1^1^1^1^1^1^1^1^1^1^1^1^1^1^1^1^1^1^1^1^1^1^1^1^1^1^1^1 | E193: 1^1^1^1^1^1^1^1^1^1^1^1^1^1^1^1^1^1^1^1^1^1^1^1^1^1^1^1^1^1^1^1^1^1^1^1^1^1^1^1 | F193: 250^250^250^250^250^250^250^250^250^250^250^250^250^250^250^250^250^250^250^250^250^250^250^250^250^250^250^250^250^250^250^250^250^250^250^250^250^250^250^250 | G193: 0 | H193: 0 | I193: 0 | J193: 0 | K193: 0 | L193: 遗迹探险_难度3_BOSS关卡随机掉落白装/绿装（抽2件）
A194: 80010 | B194: 3 | C194: 210102^210202^210302^210402^210502^210602^210702^210802^210902^211002^220102^220202^220302^220402^220502^220602^230102^230202^230302^230402^230502^230602^240102^240202^240302^240402^240502^240602^250102^250202^250302^250402^250502^250602^260102^260202^260302^260402^260502^260602 | D194: 1^1^1^1^1^1^1^1^1^1^1^1^1^1^1^1^1^1^1^1^1^1^1^1^1^1^1^1^1^1^1^1^1^1^1^1^1^1^1^1 | E194: 1^1^1^1^1^1^1^1^1^1^1^1^1^1^1^1^1^1^1^1^1^1^1^1^1^1^1^1^1^1^1^1^1^1^1^1^1^1^1^1 | F194: 250^250^250^250^250^250^250^250^250^250^250^250^250^250^250^250^250^250^250^250^250^250^250^250^250^250^250^250^250^250^250^250^250^250^250^250^250^250^250^250 | G194: 0 | H194: 0 | I194: 0 | J194: 0 | K194: 0 | L194: 遗迹探险_难度4_BOSS关卡随机掉落白装/绿装（抽3件）
A195: 80011 | B195: 2 | C195: 210103^210203^210303^210403^210503^210603^210703^210803^210903^211003^220103^220203^220303^220403^220503^220603^230103^230203^230303^230403^230503^230603^240103^240203^240303^240403^240503^240603^250103^250203^250303^250403^250503^250603^260103^260203^260303^260403^260503^260603 | D195: 1^1^1^1^1^1^1^1^1^1^1^1^1^1^1^1^1^1^1^1^1^1^1^1^1^1^1^1^1^1^1^1^1^1^1^1^1^1^1^1 | E195: 1^1^1^1^1^1^1^1^1^1^1^1^1^1^1^1^1^1^1^1^1^1^1^1^1^1^1^1^1^1^1^1^1^1^1^1^1^1^1^1 | F195: 250^250^250^250^250^250^250^250^250^250^250^250^250^250^250^250^250^250^250^250^250^250^250^250^250^250^250^250^250^250^250^250^250^250^250^250^250^250^250^250 | G195: 0 | H195: 0 | I195: 0 | J195: 0 | K195: 0 | L195: 遗迹探险_难度5_BOSS关卡随机掉落白装/绿装/蓝装（抽2件）
A196: 80012 | B196: 3 | C196: 210103^210203^210303^210403^210503^210603^210703^210803^210903^211003^220103^220203^220303^220403^220503^220603^230103^230203^230303^230403^230503^230603^240103^240203^240303^240403^240503^240603^250103^250203^250303^250403^250503^250603^260103^260203^260303^260403^260503^260603 | D196: 1^1^1^1^1^1^1^1^1^1^1^1^1^1^1^1^1^1^1^1^1^1^1^1^1^1^1^1^1^1^1^1^1^1^1^1^1^1^1^1 | E196: 1^1^1^1^1^1^1^1^1^1^1^1^1^1^1^1^1^1^1^1^1^1^1^1^1^1^1^1^1^1^1^1^1^1^1^1^1^1^1^1 | F196: 250^250^250^250^250^250^250^250^250^250^250^250^250^250^250^250^250^250^250^250^250^250^250^250^250^250^250^250^250^250^250^250^250^250^250^250^250^250^250^250 | G196: 0 | H196: 0 | I196: 0 | J196: 0 | K196: 0 | L196: 遗迹探险_难度6_BOSS关卡随机掉落白装/绿装/蓝装（抽3件）
A197: 80013 | B197: 3 | C197: 100001^100001^100001^100001^100001^100001^110006^110006^110006^140051^140051^140050^140050^140050^140050 | D197: 500^1000^2000^5000^100^200^30^20^10^2^1^1^2^3^5 | E197: 500^1000^2000^5000^100^200^30^20^10^2^1^1^2^3^5 | F197: 420^420^420^420^420^420^400^800^1400^200^480^1200^1200^1200^600 | G197: 0 | H197: 0 | I197: 0 | J197: 0 | K197: 0 | L197: 遗迹探险_难度1_随机宝箱奖励库
A198: 80014 | B198: 3 | C198: 100001^100001^100001^100001^100001^100001^110006^110006^110006^140051^140051^140050^140050^140050^140050 | D198: 750^1500^3000^7500^150^300^35^25^15^2^1^1^2^3^3 | E198: 750^1500^3000^7500^150^300^35^25^15^2^1^1^2^3^3 | F198: 420^420^420^420^420^420^400^800^1400^200^480^1200^1200^1200^600 | G198: 0 | H198: 0 | I198: 0 | J198: 0 | K198: 0 | L198: 遗迹探险_难度2_随机宝箱奖励库
A199: 80015 | B199: 3 | C199: 100001^100001^100001^100001^100001^100001^110006^110006^110006^140051^140051^140050^140050^140050^140050 | D199: 1120^2250^4500^11250^220^450^40^30^20^2^1^1^2^3^3 | E199: 1120^2250^4500^11250^220^450^40^30^20^2^1^1^2^3^3 | F199: 420^420^420^420^420^420^400^800^1400^200^480^1200^1200^1200^600 | G199: 0 | H199: 0 | I199: 0 | J199: 0 | K199: 0 | L199: 遗迹探险_难度3_随机宝箱奖励库
A200: 80016 | B200: 3 | C200: 100001^100001^100001^100001^100001^100001^110006^110006^110006^140051^140051^140050^140050^140050^140050 | D200: 1680^3370^6750^16870^330^670^45^35^25^2^1^1^2^3^5 | E200: 1680^3370^6750^16870^330^670^45^35^25^2^1^1^2^3^5 | F200: 420^420^420^420^420^420^400^800^1400^200^480^1200^1200^1200^600 | G200: 0 | H200: 0 | I200: 0 | J200: 0 | K200: 0 | L200: 遗迹探险_难度4_随机宝箱奖励库
... 21 more rows

Sheet Sheet1
C1: 关卡波次奖励
C2: 经验石 | D2: 金币 | E2: 队伍经验 | F2: 装备卷轴 | J2: ^ | P2: ^
B3: 森林1-1 | C3: 15 | D3: 1000 | E3: 1320 | J3: =C3&$P$2&D3&$P$2&E3 -> 15^1000^1320 | L3: 140004 | M3: 100001 | N3: 140003 | P3: =L3&$P$2&M3&$P$2&N3 -> 140004^100001^140003 | T3: 10 | U3: =FLOOR(T3*1.5,1) -> 15 | V3: 140007 | W3: 140007^140008^140009^140010^140011^140012 | AC3: 500 | AD3: =FLOOR(AC3*2,1) -> 1000 | AF3: 1100 | AG3: =FLOOR(AF3*1.2,1) -> 1320
B4: 森林1-2 | C4: 16 | D4: 1040 | E4: 1440 | J4: =C4&$P$2&D4&$P$2&E4 -> 16^1040^1440 | L4: 140004 | M4: 100001 | N4: 140003 | P4: =L4&$P$2&M4&$P$2&N4 -> 140004^100001^140003 | T4: 11 | U4: =FLOOR(T4*1.5,1) -> 16 | V4: 140008 | AC4: 520 | AD4: =FLOOR(AC4*2,1) -> 1040 | AF4: 1200 | AG4: =FLOOR(AF4*1.2,1) -> 1440
B5: 森林1-3 | C5: 18 | D5: 1080 | E5: 1560 | J5: 18^1080^1560 | L5: 140004 | M5: 100001 | N5: 140003 | P5: 140004^100001^140003 | T5: 12 | U5: 18 | V5: 140009 | AC5: 540 | AD5: 1080 | AF5: 1300 | AG5: 1560
B6: 森林1-4 | C6: 19 | D6: 1120 | E6: 1680 | J6: 19^1120^1680 | L6: 140004 | M6: 100001 | N6: 140003 | P6: 140004^100001^140003 | T6: 13 | U6: 19 | V6: 140010 | AC6: 560 | AD6: 1120 | AF6: 1400 | AG6: 1680
B7: 森林1-5 | C7: 21 | D7: 1160 | E7: 1800 | J7: 21^1160^1800 | L7: 140004 | M7: 100001 | N7: 140003 | P7: 140004^100001^140003 | T7: 14 | U7: 21 | V7: 140011 | AC7: 580 | AD7: 1160 | AF7: 1500 | AG7: 1800
B8: 密林1-1 | C8: 22 | D8: 1200 | E8: 1920 | J8: 22^1200^1920 | L8: 140004 | M8: 100001 | N8: 140003 | P8: 140004^100001^140003 | T8: 15 | U8: 22 | V8: 140012 | AC8: 600 | AD8: 1200 | AF8: 1600 | AG8: 1920
B9: 密林1-2 | C9: 24 | D9: 1240 | E9: 2040 | J9: 24^1240^2040 | L9: 140004 | M9: 100001 | N9: 140003 | P9: 140004^100001^140003 | T9: 16 | U9: 24 | AC9: 620 | AD9: 1240 | AF9: 1700 | AG9: 2040
B10: 密林1-3 | C10: 25 | D10: 1280 | E10: 2160 | J10: 25^1280^2160 | L10: 140004 | M10: 100001 | N10: 140003 | P10: 140004^100001^140003 | T10: 17 | U10: 25 | AC10: 640 | AD10: 1280 | AF10: 1800 | AG10: 2160
B11: 密林1-4 | C11: 27 | D11: 1320 | E11: 2280 | J11: 27^1320^2280 | L11: 140004 | M11: 100001 | N11: 140003 | P11: 140004^100001^140003 | T11: 18 | U11: 27 | AC11: 660 | AD11: 1320 | AF11: 1900 | AG11: 2280
B12: 密林1-5 | C12: 28 | D12: 1360 | E12: 2400 | J12: 28^1360^2400 | L12: 140004 | M12: 100001 | N12: 140003 | P12: 140004^100001^140003 | T12: 19 | U12: 28 | AC12: 680 | AD12: 1360 | AF12: 2000 | AG12: 2400
B13: 雪原1-1 | C13: 30 | D13: 1400 | E13: 2640 | J13: 30^1400^2640 | L13: 140004 | M13: 100001 | N13: 140003 | P13: 140004^100001^140003 | T13: 20 | U13: 30 | AC13: 700 | AD13: 1400 | AF13: 2200 | AG13: 2640
B14: 雪原1-2 | C14: 31 | D14: 1440 | E14: 2880 | J14: 31^1440^2880 | L14: 140004 | M14: 100001 | N14: 140003 | P14: 140004^100001^140003 | T14: 21 | U14: 31 | AC14: 720 | AD14: 1440 | AF14: 2400 | AG14: 2880
B15: 雪原1-3 | C15: 33 | D15: 1480 | E15: 3120 | J15: 33^1480^3120 | L15: 140004 | M15: 100001 | N15: 140003 | P15: 140004^100001^140003 | T15: 22 | U15: 33 | AC15: 740 | AD15: 1480 | AF15: 2600 | AG15: 3120
B16: 雪原1-4 | C16: 34 | D16: 1520 | E16: 3360 | J16: 34^1520^3360 | L16: 140004 | M16: 100001 | N16: 140003 | P16: 140004^100001^140003 | T16: 23 | U16: 34 | AC16: 760 | AD16: 1520 | AF16: 2800 | AG16: 3360
B17: 雪原1-5 | C17: 36 | D17: 1560 | E17: 3600 | J17: 36^1560^3600 | L17: 140004 | M17: 100001 | N17: 140003 | P17: 140004^100001^140003 | T17: 24 | U17: 36 | AC17: 780 | AD17: 1560 | AF17: 3000 | AG17: 3600
B18: 雪山1-1 | C18: 37 | D18: 1600 | E18: 3840 | J18: 37^1600^3840 | L18: 140004 | M18: 100001 | N18: 140003 | P18: 140004^100001^140003 | T18: 25 | U18: 37 | AC18: 800 | AD18: 1600 | AF18: 3200 | AG18: 3840
B19: 雪山1-2 | C19: 39 | D19: 1640 | E19: 4080 | J19: 39^1640^4080 | L19: 140004 | M19: 100001 | N19: 140003 | P19: 140004^100001^140003 | T19: 26 | U19: 39 | AC19: 820 | AD19: 1640 | AF19: 3400 | AG19: 4080
A20: 开始掉落卷轴 | B20: 雪山1-3 | C20: 40 | D20: 1680 | E20: 4320 | F20: 2 | J20: 40^1680^4320 | L20: 140004 | M20: 100001 | N20: 140003 | P20: 140004^100001^140003 | T20: 27 | U20: 40 | AC20: 840 | AD20: 1680 | AF20: 3600 | AG20: 4320
B21: 雪山1-4 | C21: 42 | D21: 1720 | E21: 4560 | F21: 2 | J21: 42^1720^4560 | L21: 140004 | M21: 100001 | N21: 140003 | P21: 140004^100001^140003 | T21: 28 | U21: 42 | AC21: 860 | AD21: 1720 | AF21: 3800 | AG21: 4560
B22: 雪山1-5 | C22: 43 | D22: 1760 | E22: 4800 | F22: 2 | J22: 43^1760^4800 | L22: 140004 | M22: 100001 | N22: 140003 | P22: 140004^100001^140003 | T22: 29 | U22: 43 | AC22: 880 | AD22: 1760 | AF22: 4000 | AG22: 4800
B23: 火山1-1 | C23: 45 | D23: 1800 | E23: 5040 | F23: 2 | J23: 45^1800^5040 | L23: 140004 | M23: 100001 | N23: 140003 | P23: 140004^100001^140003 | T23: 30 | U23: 45 | AC23: 900 | AD23: 1800 | AF23: 4200 | AG23: 5040
B24: 火山1-2 | C24: 46 | D24: 1840 | E24: 5280 | F24: 2 | J24: 46^1840^5280 | L24: 140004 | M24: 100001 | N24: 140003 | P24: 140004^100001^140003 | T24: 31 | U24: 46 | AC24: 920 | AD24: 1840 | AF24: 4400 | AG24: 5280
B25: 火山1-3 | C25: 48 | D25: 1880 | E25: 5520 | F25: 2 | J25: 48^1880^5520 | L25: 140004 | M25: 100001 | N25: 140003 | P25: 140004^100001^140003 | T25: 32 | U25: 48 | AC25: 940 | AD25: 1880 | AF25: 4600 | AG25: 5520
B26: 火山1-4 | C26: 49 | D26: 1920 | E26: 5760 | F26: 2 | J26: 49^1920^5760 | L26: 140004 | M26: 100001 | N26: 140003 | P26: 140004^100001^140003 | T26: 33 | U26: 49 | AC26: 960 | AD26: 1920 | AF26: 4800 | AG26: 5760
B27: 火山1-5 | C27: 51 | D27: 1960 | E27: 6000 | F27: 2 | J27: 51^1960^6000 | L27: 140004 | M27: 100001 | N27: 140003 | P27: 140004^100001^140003 | T27: 34 | U27: 51 | AC27: 980 | AD27: 1960 | AF27: 5000 | AG27: 6000
B28: 炎地1-1 | C28: 52 | D28: 2000 | E28: 6240 | F28: 2 | J28: 52^2000^6240 | L28: 140004 | M28: 100001 | N28: 140003 | P28: 140004^100001^140003 | T28: 35 | U28: 52 | AC28: 1000 | AD28: 2000 | AF28: 5200 | AG28: 6240
B29: 炎地1-2 | C29: 54 | D29: 2040 | E29: 6480 | F29: 2 | J29: 54^2040^6480 | L29: 140004 | M29: 100001 | N29: 140003 | P29: 140004^100001^140003 | T29: 36 | U29: 54 | AC29: 1020 | AD29: 2040 | AF29: 5400 | AG29: 6480
B30: 炎地1-3 | C30: 55 | D30: 2080 | E30: 6720 | F30: 2 | J30: 55^2080^6720 | L30: 140004 | M30: 100001 | N30: 140003 | P30: 140004^100001^140003 | T30: 37 | U30: 55 | AC30: 1040 | AD30: 2080 | AF30: 5600 | AG30: 6720
B31: 炎地1-4 | C31: 57 | D31: 2120 | E31: 6960 | F31: 2 | J31: 57^2120^6960 | L31: 140004 | M31: 100001 | N31: 140003 | P31: 140004^100001^140003 | T31: 38 | U31: 57 | AC31: 1060 | AD31: 2120 | AF31: 5800 | AG31: 6960
B32: 炎地1-5 | C32: 58 | D32: 2160 | E32: 7200 | F32: 2 | J32: 58^2160^7200 | L32: 140004 | M32: 100001 | N32: 140003 | P32: 140004^100001^140003 | T32: 39 | U32: 58 | AC32: 1080 | AD32: 2160 | AF32: 6000 | AG32: 7200
B33: 沼泽1-1 | C33: 60 | D33: 2200 | E33: 7800 | F33: 3 | J33: 60^2200^7800 | L33: 140004 | M33: 100001 | N33: 140003 | P33: 140004^100001^140003 | T33: 40 | U33: 60 | AC33: 1100 | AD33: 2200 | AF33: 6500 | AG33: 7800
B34: 沼泽1-2 | C34: 61 | D34: 2240 | E34: 8400 | F34: 3 | J34: 61^2240^8400 | L34: 140004 | M34: 100001 | N34: 140003 | P34: 140004^100001^140003 | T34: 41 | U34: 61 | AC34: 1120 | AD34: 2240 | AF34: 7000 | AG34: 8400
B35: 沼泽1-3 | C35: 63 | D35: 2280 | E35: 9000 | F35: 3 | J35: 63^2280^9000 | L35: 140004 | M35: 100001 | N35: 140003 | P35: 140004^100001^140003 | T35: 42 | U35: 63 | AC35: 1140 | AD35: 2280 | AF35: 7500 | AG35: 9000
B36: 沼泽1-4 | C36: 64 | D36: 2320 | E36: 9600 | F36: 3 | J36: 64^2320^9600 | L36: 140004 | M36: 100001 | N36: 140003 | P36: 140004^100001^140003 | T36: 43 | U36: 64 | AC36: 1160 | AD36: 2320 | AF36: 8000 | AG36: 9600
B37: 沼泽1-5 | C37: 66 | D37: 2360 | E37: 10200 | F37: 3 | J37: 66^2360^10200 | L37: 140004 | M37: 100001 | N37: 140003 | P37: 140004^100001^140003 | T37: 44 | U37: 66 | AC37: 1180 | AD37: 2360 | AF37: 8500 | AG37: 10200
B38: 绿洲1-1 | C38: 67 | D38: 2400 | E38: 10800 | F38: 3 | J38: 67^2400^10800 | L38: 140004 | M38: 100001 | N38: 140003 | P38: 140004^100001^140003 | T38: 45 | U38: 67 | AC38: 1200 | AD38: 2400 | AF38: 9000 | AG38: 10800
B39: 绿洲1-2 | C39: 69 | D39: 2440 | E39: 11400 | F39: 3 | J39: 69^2440^11400 | L39: 140004 | M39: 100001 | N39: 140003 | P39: 140004^100001^140003 | T39: 46 | U39: 69 | AC39: 1220 | AD39: 2440 | AF39: 9500 | AG39: 11400
B40: 绿洲1-3 | C40: 70 | D40: 2480 | E40: 12000 | F40: 3 | J40: 70^2480^12000 | L40: 140004 | M40: 100001 | N40: 140003 | P40: 140004^100001^140003 | T40: 47 | U40: 70 | AC40: 1240 | AD40: 2480 | AF40: 10000 | AG40: 12000
B41: 绿洲1-4 | C41: 72 | D41: 2520 | E41: 12600 | F41: 3 | J41: 72^2520^12600 | L41: 140004 | M41: 100001 | N41: 140003 | P41: 140004^100001^140003 | T41: 48 | U41: 72 | AC41: 1260 | AD41: 2520 | AF41: 10500 | AG41: 12600
B42: 绿洲1-5 | C42: 73 | D42: 2560 | E42: 13200 | F42: 3 | J42: 73^2560^13200 | L42: 140004 | M42: 100001 | N42: 140003 | P42: 140004^100001^140003 | T42: 49 | U42: 73 | AC42: 1280 | AD42: 2560 | AF42: 11000 | AG42: 13200
B43: 荒林1-1 | C43: 75 | D43: 2600 | E43: 13800 | F43: 3 | J43: 75^2600^13800 | L43: 140004 | M43: 100001 | N43: 140003 | P43: 140004^100001^140003 | T43: 50 | U43: 75 | AC43: 1300 | AD43: 2600 | AF43: 11500 | AG43: 13800
B44: 荒林1-2 | C44: 76 | D44: 2640 | E44: 14400 | F44: 3 | J44: 76^2640^14400 | L44: 140004 | M44: 100001 | N44: 140003 | P44: 140004^100001^140003 | T44: 51 | U44: 76 | AC44: 1320 | AD44: 2640 | AF44: 12000 | AG44: 14400
B45: 荒林1-3 | C45: 78 | D45: 2680 | E45: 15000 | F45: 3 | J45: 78^2680^15000 | L45: 140004 | M45: 100001 | N45: 140003 | P45: 140004^100001^140003 | T45: 52 | U45: 78 | AC45: 1340 | AD45: 2680 | AF45: 12500 | AG45: 15000
B46: 荒林1-4 | C46: 79 | D46: 2720 | E46: 15600 | F46: 3 | J46: 79^2720^15600 | L46: 140004 | M46: 100001 | N46: 140003 | P46: 140004^100001^140003 | T46: 53 | U46: 79 | AC46: 1360 | AD46: 2720 | AF46: 13000 | AG46: 15600
B47: 荒林1-5 | C47: 81 | D47: 2760 | E47: 16800 | F47: 3 | J47: 81^2760^16800 | L47: 140004 | M47: 100001 | N47: 140003 | P47: 140004^100001^140003 | T47: 54 | U47: 81 | AC47: 1380 | AD47: 2760 | AF47: 14000 | AG47: 16800
B48: 高原1-1 | C48: 90 | D48: 2800 | E48: 18000 | F48: 4 | J48: 90^2800^18000 | L48: 140004 | M48: 100001 | N48: 140003 | P48: 140004^100001^140003 | T48: 60 | U48: 90 | AC48: 1400 | AD48: 2800 | AF48: 15000 | AG48: 18000
B49: 高原1-2 | C49: 91 | D49: 2840 | E49: 19200 | F49: 4 | J49: 91^2840^19200 | L49: 140004 | M49: 100001 | N49: 140003 | P49: 140004^100001^140003 | T49: 61 | U49: 91 | AC49: 1420 | AD49: 2840 | AF49: 16000 | AG49: 19200
B50: 高原1-3 | C50: 93 | D50: 2880 | E50: 20400 | F50: 4 | J50: 93^2880^20400 | L50: 140004 | M50: 100001 | N50: 140003 | P50: 140004^100001^140003 | T50: 62 | U50: 93 | AC50: 1440 | AD50: 2880 | AF50: 17000 | AG50: 20400
B51: 高原1-4 | C51: 94 | D51: 2920 | E51: 21600 | F51: 4 | J51: 94^2920^21600 | L51: 140004 | M51: 100001 | N51: 140003 | P51: 140004^100001^140003 | T51: 63 | U51: 94 | AC51: 1460 | AD51: 2920 | AF51: 18000 | AG51: 21600
B52: 高原1-5 | C52: 96 | D52: 2960 | E52: 22800 | F52: 4 | J52: 96^2960^22800 | L52: 140004 | M52: 100001 | N52: 140003 | P52: 140004^100001^140003 | T52: 64 | U52: 96 | AC52: 1480 | AD52: 2960 | AF52: 19000 | AG52: 22800
B53: 雪谷1-1 | C53: 105 | D53: 3000 | E53: 24000 | F53: 4 | J53: 105^3000^24000 | L53: 140004 | M53: 100001 | N53: 140003 | P53: 140004^100001^140003 | T53: 70 | U53: 105 | AC53: 1500 | AD53: 3000 | AF53: 20000 | AG53: 24000
B54: 雪谷1-2 | C54: 106 | D54: 3040 | E54: 25200 | F54: 4 | J54: 106^3040^25200 | L54: 140004 | M54: 100001 | N54: 140003 | P54: 140004^100001^140003 | T54: 71 | U54: 106 | AC54: 1520 | AD54: 3040 | AF54: 21000 | AG54: 25200
B55: 雪谷1-3 | C55: 108 | D55: 3080 | E55: 26400 | F55: 4 | J55: 108^3080^26400 | L55: 140004 | M55: 100001 | N55: 140003 | P55: 140004^100001^140003 | T55: 72 | U55: 108 | AC55: 1540 | AD55: 3080 | AF55: 22000 | AG55: 26400
B56: 雪谷1-4 | C56: 109 | D56: 3120 | E56: 27600 | F56: 4 | J56: 109^3120^27600 | L56: 140004 | M56: 100001 | N56: 140003 | P56: 140004^100001^140003 | T56: 73 | U56: 109 | AC56: 1560 | AD56: 3120 | AF56: 23000 | AG56: 27600
B57: 雪谷1-5 | C57: 111 | D57: 3160 | E57: 28800 | F57: 4 | J57: 111^3160^28800 | L57: 140004 | M57: 100001 | N57: 140003 | P57: 140004^100001^140003 | T57: 74 | U57: 111 | AC57: 1580 | AD57: 3160 | AF57: 24000 | AG57: 28800
B58: 冰原1-1 | C58: 120 | D58: 3200 | E58: 31200 | F58: 4 | J58: 120^3200^31200 | L58: 140004 | M58: 100001 | N58: 140003 | P58: 140004^100001^140003 | T58: 80 | U58: 120 | AC58: 1600 | AD58: 3200 | AF58: 26000 | AG58: 31200
B59: 冰原1-2 | C59: 121 | D59: 3240 | E59: 33600 | F59: 4 | J59: 121^3240^33600 | L59: 140004 | M59: 100001 | N59: 140003 | P59: 140004^100001^140003 | T59: 81 | U59: 121 | AC59: 1620 | AD59: 3240 | AF59: 28000 | AG59: 33600
B60: 冰原1-3 | C60: 123 | D60: 3280 | E60: 36000 | F60: 4 | J60: 123^3280^36000 | L60: 140004 | M60: 100001 | N60: 140003 | P60: 140004^100001^140003 | T60: 82 | U60: 123 | AC60: 1640 | AD60: 3280 | AF60: 30000 | AG60: 36000
B61: 冰原1-4 | C61: 124 | D61: 3320 | E61: 38400 | F61: 4 | J61: 124^3320^38400 | L61: 140004 | M61: 100001 | N61: 140003 | P61: 140004^100001^140003 | T61: 83 | U61: 124 | AC61: 1660 | AD61: 3320 | AF61: 32000 | AG61: 38400
B62: 冰原1-5 | C62: 126 | D62: 3360 | E62: 40800 | F62: 4 | J62: 126^3360^40800 | L62: 140004 | M62: 100001 | N62: 140003 | P62: 140004^100001^140003 | T62: 84 | U62: 126 | AC62: 1680 | AD62: 3360 | AF62: 34000 | AG62: 40800
B63: 熔岩1-1 | C63: 135 | D63: 3400 | E63: 43200 | F63: 5 | J63: 135^3400^43200 | L63: 140004 | M63: 100001 | N63: 140003 | P63: 140004^100001^140003 | T63: 90 | U63: 135 | AC63: 1700 | AD63: 3400 | AF63: 36000 | AG63: 43200
B64: 熔岩1-2 | C64: 136 | D64: 3440 | E64: 45600 | F64: 5 | J64: 136^3440^45600 | L64: 140004 | M64: 100001 | N64: 140003 | P64: 140004^100001^140003 | T64: 91 | U64: 136 | AC64: 1720 | AD64: 3440 | AF64: 38000 | AG64: 45600
B65: 熔岩1-3 | C65: 138 | D65: 3480 | E65: 48000 | F65: 5 | J65: 138^3480^48000 | L65: 140004 | M65: 100001 | N65: 140003 | P65: 140004^100001^140003 | T65: 92 | U65: 138 | AC65: 1740 | AD65: 3480 | AF65: 40000 | AG65: 48000
B66: 熔岩1-4 | C66: 139 | D66: 3520 | E66: 50400 | F66: 5 | J66: 139^3520^50400 | L66: 140004 | M66: 100001 | N66: 140003 | P66: 140004^100001^140003 | T66: 93 | U66: 139 | AC66: 1760 | AD66: 3520 | AF66: 42000 | AG66: 50400
B67: 熔岩1-5 | C67: 141 | D67: 3560 | E67: 52800 | F67: 5 | J67: 141^3560^52800 | L67: 140004 | M67: 100001 | N67: 140003 | P67: 140004^100001^140003 | T67: 94 | U67: 141 | AC67: 1780 | AD67: 3560 | AF67: 44000 | AG67: 52800
B68: 熔谷1-1 | C68: 150 | D68: 3600 | E68: 56400 | F68: 5 | J68: =C68&$P$2&D68&$P$2&E68 -> 150^3600^56400 | L68: 140004 | M68: 100001 | N68: 140003 | P68: =L68&$P$2&M68&$P$2&N68 -> 140004^100001^140003 | T68: 100 | U68: =FLOOR(T68*1.5,1) -> 150 | AC68: 1800 | AD68: =FLOOR(AC68*2,1) -> 3600 | AF68: 47000 | AG68: =FLOOR(AF68*1.2,1) -> 56400
B69: 熔谷1-2 | C69: 151 | D69: 3640 | E69: 60000 | F69: 5 | J69: 151^3640^60000 | L69: 140004 | M69: 100001 | N69: 140003 | P69: 140004^100001^140003 | T69: 101 | U69: 151 | AC69: 1820 | AD69: 3640 | AF69: 50000 | AG69: 60000
B70: 熔谷1-3 | C70: 153 | D70: 3680 | E70: 63600 | F70: 5 | J70: 153^3680^63600 | L70: 140004 | M70: 100001 | N70: 140003 | P70: 140004^100001^140003 | T70: 102 | U70: 153 | AC70: 1840 | AD70: 3680 | AF70: 53000 | AG70: 63600
B71: 熔谷1-4 | C71: 154 | D71: 3720 | E71: 67200 | F71: 5 | J71: 154^3720^67200 | L71: 140004 | M71: 100001 | N71: 140003 | P71: 140004^100001^140003 | T71: 103 | U71: 154 | AC71: 1860 | AD71: 3720 | AF71: 56000 | AG71: 67200
B72: 熔谷1-5 | C72: 156 | D72: 3760 | E72: 70800 | F72: 5 | J72: 156^3760^70800 | L72: 140004 | M72: 100001 | N72: 140003 | P72: 140004^100001^140003 | T72: 104 | U72: 156 | AC72: 1880 | AD72: 3760 | AF72: 59000 | AG72: 70800
B73: 焦土1-1 | C73: 165 | D73: 3800 | E73: 74400 | F73: 5 | J73: 165^3800^74400 | L73: 140004 | M73: 100001 | N73: 140003 | P73: 140004^100001^140003 | T73: 110 | U73: 165 | AC73: 1900 | AD73: 3800 | AF73: 62000 | AG73: 74400
B74: 焦土1-2 | C74: 166 | D74: 3840 | E74: 78000 | F74: 5 | J74: 166^3840^78000 | L74: 140004 | M74: 100001 | N74: 140003 | P74: 140004^100001^140003 | T74: 111 | U74: 166 | AC74: 1920 | AD74: 3840 | AF74: 65000 | AG74: 78000
B75: 焦土1-3 | C75: 168 | D75: 3880 | E75: 81600 | F75: 5 | J75: 168^3880^81600 | L75: 140004 | M75: 100001 | N75: 140003 | P75: 140004^100001^140003 | T75: 112 | U75: 168 | AC75: 1940 | AD75: 3880 | AF75: 68000 | AG75: 81600
B76: 焦土1-4 | C76: 169 | D76: 3920 | E76: 85200 | F76: 5 | J76: 169^3920^85200 | L76: 140004 | M76: 100001 | N76: 140003 | P76: 140004^100001^140003 | T76: 113 | U76: 169 | AC76: 1960 | AD76: 3920 | AF76: 71000 | AG76: 85200
B77: 焦土1-5 | C77: 171 | D77: 3960 | E77: 88800 | F77: 5 | J77: 171^3960^88800 | L77: 140004 | M77: 100001 | N77: 140003 | P77: 140004^100001^140003 | T77: 114 | U77: 171 | AC77: 1980 | AD77: 3960 | AF77: 74000 | AG77: 88800
B80: 体力 | C80: 金币 | D80: 木材 | E80: 铁矿 | F80: 精炼石
A81: 1级金矿探索 | C81: 1800 | F81: 3 | G81: =C81*1.5 -> 2700 | H81: 6 | I81: =(H81+F81)/2 -> 4.5 | J81: =_xlfn.TEXTJOIN("^",,B81:F81) -> 1800^3 | K81: =_xlfn.TEXTJOIN("^",,G81:H81) -> 2700^6
A82: 2级金矿探索 | C82: 2700 | F82: 5 | G82: =C82*1.5 -> 4050 | H82: 9 | I82: =(H82+F82)/2 -> 7 | J82: 2700^5 | K82: =_xlfn.TEXTJOIN("^",,G82:H82) -> 4050^9 | M82: 1 | N82: =M82*180 -> 180
A83: 3级金矿探索 | C83: 3960 | F83: 7 | G83: 5940 | H83: 10 | I83: 8.5 | J83: 3960^7 | K83: 5940^10 | M83: 2 | N83: =M83*180 -> 360
A84: 4级金矿探索 | C84: 5940 | F84: 10 | G84: 8910 | H84: 14 | I84: 12 | J84: 5940^10 | K84: 8910^14 | M84: 4 | N84: 720
A85: 5级金矿探索 | C85: 8820 | F85: 14 | G85: 13230 | H85: 17 | I85: 15.5 | J85: 8820^14 | K85: 13230^17 | M85: 6 | N85: 1080
A86: 6级金矿探索 | C86: 13140 | F86: 18 | G86: 19710 | H86: 21 | I86: 19.5 | J86: 13140^18 | K86: 19710^21 | M86: 8 | N86: 1440
A87: 7级金矿探索 | C87: 19620 | F87: 23 | G87: 29430 | H87: 26 | I87: 24.5 | J87: 19620^23 | K87: 29430^26 | M87: 10 | N87: 1800
A88: 8级金矿探索 | C88: 25380 | F88: 28 | G88: 38070 | H88: 31 | I88: 29.5 | J88: 25380^28 | K88: 38070^31 | M88: 12 | N88: 2160
A89: 9级金矿探索 | C89: 32940 | F89: 34 | G89: 49410 | H89: 37 | I89: 35.5 | J89: 32940^34 | K89: 49410^37 | M89: 14 | N89: 2520
A90: 10级金矿探索 | C90: 42660 | F90: 44 | G90: 63990 | H90: 47 | I90: 45.5 | J90: 42660^44 | K90: 63990^47 | M90: 16 | N90: 2880
A91: 1级农场探索 | B91: 18 | F91: 3 | G91: =B91*1.5 -> 27 | H91: 6 | I91: 4.5 | J91: 18^3 | K91: 27^6 | M91: 18 | N91: 3240
A92: 2级农场探索 | B92: 20 | F92: 5 | G92: =B92*1.5 -> 30 | H92: 9 | I92: 7 | J92: 20^5 | K92: 30^9 | M92: 10 | N92: =M92*180 -> 1800
A93: 3级农场探索 | B93: 22 | F93: 7 | G93: 33 | H93: 10 | I93: 8.5 | J93: 22^7 | K93: 33^10 | M93: 15 | N93: 2700
A94: 4级农场探索 | B94: 25 | F94: 10 | G94: 37.5 | H94: 14 | I94: 12 | J94: 25^10 | K94: 37.5^14 | M94: 22 | N94: 3960
A95: 5级农场探索 | B95: 36 | F95: 14 | G95: 54 | H95: 17 | I95: 15.5 | J95: 36^14 | K95: 54^17 | M95: 33 | N95: 5940
A96: 6级农场探索 | B96: 40 | F96: 18 | G96: 60 | H96: 21 | I96: 19.5 | J96: 40^18 | K96: 60^21 | M96: 49 | N96: 8820
A97: 7级农场探索 | B97: 45 | F97: 23 | G97: 67.5 | H97: 26 | I97: 24.5 | J97: 45^23 | K97: 67.5^26 | M97: 73 | N97: 13140
A98: 8级农场探索 | B98: 52 | F98: 28 | G98: 78 | H98: 31 | I98: 29.5 | J98: 52^28 | K98: 78^31 | M98: 109 | N98: 19620
A99: 9级农场探索 | B99: 54 | F99: 34 | G99: 81 | H99: 37 | I99: 35.5 | J99: 54^34 | K99: 81^37 | M99: 141 | N99: 25380
A100: 10级农场探索 | B100: 60 | F100: 44 | G100: 90 | H100: 47 | I100: 45.5 | J100: 60^44 | K100: 90^47 | M100: 183 | N100: 32940
A101: 1级铁矿探索 | D101: 180 | F101: 3 | G101: =D101*1.2 -> 216 | H101: 6 | I101: 4.5 | J101: 180^3 | K101: 216^6 | M101: 237 | N101: 42660
A102: 2级铁矿探索 | D102: 360 | F102: 5 | G102: =D102*1.2 -> 432 | H102: 9 | I102: 7 | J102: 360^5 | K102: 432^9
A103: 3级铁矿探索 | D103: 720 | F103: 7 | G103: 864 | H103: 10 | I103: 8.5 | J103: 720^7 | K103: 864^10 | M103: 1 | N103: 10 | O103: =180/N103*M103 -> 18
A104: 4级铁矿探索 | D104: 1080 | F104: 10 | G104: 1296 | H104: 14 | I104: 12 | J104: 1080^10 | K104: 1296^14 | M104: 1 | N104: 9 | O104: =180/N104*M104 -> 20
A105: 5级铁矿探索 | D105: 1440 | F105: 14 | G105: 1728 | H105: 17 | I105: 15.5 | J105: 1440^14 | K105: 1728^17 | M105: 1 | N105: 8 | O105: 22.5
A106: 6级铁矿探索 | D106: 1800 | F106: 18 | G106: 2160 | H106: 21 | I106: 19.5 | J106: 1800^18 | K106: 2160^21 | M106: 1 | N106: 7 | O106: 25.71428571
A107: 7级铁矿探索 | D107: 2160 | F107: 23 | G107: 2592 | H107: 26 | I107: 24.5 | J107: 2160^23 | K107: 2592^26 | M107: 2 | N107: 10 | O107: 36
A108: 8级铁矿探索 | D108: 2520 | F108: 28 | G108: 3024 | H108: 31 | I108: 29.5 | J108: 2520^28 | K108: 3024^31 | M108: 2 | N108: 9 | O108: 40
A109: 9级铁矿探索 | D109: 2880 | F109: 34 | G109: 3456 | H109: 37 | I109: 35.5 | J109: 2880^34 | K109: 3456^37 | M109: 2 | N109: 8 | O109: 45
A110: 10级铁矿探索 | D110: 3240 | F110: 44 | G110: 3888 | H110: 47 | I110: 45.5 | J110: 3240^44 | K110: 3888^47 | M110: 2 | N110: 7 | O110: 51.42857143
A111: 1级木场探索 | E111: 180 | F111: 3 | G111: =E111*1.2 -> 216 | H111: 6 | I111: 4.5 | J111: 180^3 | K111: 216^6 | M111: 3 | N111: 10 | O111: 54
A112: 2级木场探索 | E112: 360 | F112: 5 | G112: =E112*1.2 -> 432 | H112: 9 | I112: 7 | J112: 360^5 | K112: 432^9 | M112: 3 | N112: 9 | O112: 60
A113: 3级木场探索 | E113: 720 | F113: 7 | G113: 864 | H113: 10 | I113: 8.5 | J113: 720^7 | K113: 864^10
A114: 4级木场探索 | E114: 1080 | F114: 10 | G114: 1296 | H114: 14 | I114: 12 | J114: 1080^10 | K114: 1296^14
A115: 5级木场探索 | E115: 1440 | F115: 14 | G115: 1728 | H115: 17 | I115: 15.5 | J115: 1440^14 | K115: 1728^17
A116: 6级木场探索 | E116: 1800 | F116: 18 | G116: 2160 | H116: 21 | I116: 19.5 | J116: 1800^18 | K116: 2160^21
A117: 7级木场探索 | E117: 2160 | F117: 23 | G117: 2592 | H117: 26 | I117: 24.5 | J117: 2160^23 | K117: 2592^26
A118: 8级木场探索 | E118: 2520 | F118: 28 | G118: 3024 | H118: 31 | I118: 29.5 | J118: 2520^28 | K118: 3024^31
A119: 9级木场探索 | E119: 2880 | F119: 34 | G119: 3456 | H119: 37 | I119: 35.5 | J119: 2880^34 | K119: 3456^37
A120: 10级木场探索 | E120: 3240 | F120: 44 | G120: 3888 | H120: 47 | I120: 45.5 | J120: 3240^44 | K120: 3888^47
